Department family,Entity,Date,Expense type,Expense area,Supplier,Transaction number,Amount,VAT registration number,
Department for Business Innovation and Skills,Intellectual Property Office,16/07/2015,Staff Costs,People Places & Services Directorate,Acorn Recruitment Ltd,APS02727,3001.98,Not Applicable,
Department for Business Innovation and Skills,Intellectual Property Office,07/07/2015,Miscellaneous Expenses General,Copyright and Enforcement Directorate,whiteBULLET Solutions Ltd,IPO/001/15,15000.00,Not Applicable,
Department for Business Innovation and Skills,Intellectual Property Office,31/07/2015,Supporting UK Business,Copyright and Enforcement Directorate,Creative Content UK Partnership Ltd,1,378823.68,Not Applicable,
Department for Business Innovation and Skills,Intellectual Property Office,29/07/2015,Travel & Subsistence,People Places & Services Directorate,HRG UK,634628318,2934.06,Not Applicable,
Department for Business Innovation and Skills,Intellectual Property Office,29/07/2015,Travel & Subsistence,People Places & Services Directorate,HRG UK,634723021,644.71,Not Applicable,
Department for Business Innovation and Skills,Intellectual Property Office,06/07/2015,Travel & Subsistence,People Places & Services Directorate,Veezu Ltd T/A Dragon Taxis (Newport),4021,28.80,Not Applicable,
Department for Business Innovation and Skills,Intellectual Property Office,21/07/2015,Accommodation,People Places & Services Directorate,Cedric John & Son,39786,1920.00,Not Applicable,
Department for Business Innovation and Skills,Intellectual Property Office,24/07/2015,Accommodation,People Places & Services Directorate,Cedric John & Son,39851,1920.00,Not Applicable,
Department for Business Innovation and Skills,Intellectual Property Office,22/07/2015,Accommodation,People Places & Services Directorate,Corona Energy,10267454,661.61,Not Applicable,
Department for Business Innovation and Skills,Intellectual Property Office,08/07/2015,Accommodation,People Places & Services Directorate,Department For Business Innovation & Ski,6.1511E+11,95662.99,Not Applicable,
Department for Business Innovation and Skills,Intellectual Property Office,02/07/2015,Accommodation,People Places & Services Directorate,Mitie Facilities Services Ltd,100/91007097,2298.91,Not Applicable,
Department for Business Innovation and Skills,Intellectual Property Office,29/07/2015,Accommodation,People Places & Services Directorate,Mitie Facilities Services Ltd,100/91027030,7142.40,Not Applicable,
Department for Business Innovation and Skills,Intellectual Property Office,21/07/2015,Accommodation,People Places & Services Directorate,Office for National Statistics,1030401,171801.60,Not Applicable,
Department for Business Innovation and Skills,Intellectual Property Office,21/07/2015,Accommodation,People Places & Services Directorate,Office for National Statistics,1030434,171801.60,Not Applicable,
Department for Business Innovation and Skills,Intellectual Property Office,21/07/2015,Accommodation,People Places & Services Directorate,Office for National Statistics,1030519,-143168.00,Not Applicable,
Department for Business Innovation and Skills,Intellectual Property Office,21/07/2015,Accommodation,People Places & Services Directorate,Office for National Statistics,1030520,-143168.00,Not Applicable,
Department for Business Innovation and Skills,Intellectual Property Office,10/07/2015,Accommodation,People Places & Services Directorate,EDF ENERGY,7843210000-JUL15,27017.71,Not Applicable,
Department for Business Innovation and Skills,Intellectual Property Office,07/07/2015,Accommodation,People Places & Services Directorate,Rushar Ltd,13906,710.40,Not Applicable,
Department for Business Innovation and Skills,Intellectual Property Office,29/07/2015,Accommodation,People Places & Services Directorate,Acoustic Consultants Ltd,6501,840.00,Not Applicable,
Department for Business Innovation and Skills,Intellectual Property Office,29/07/2015,Travel & Subsistence,Copyright and Enforcement Directorate,HRG UK,634634072,571.01,Not Applicable,
Department for Business Innovation and Skills,Intellectual Property Office,06/07/2015,Travel & Subsistence,Copyright and Enforcement Directorate,Veezu Ltd T/A Dragon Taxis (Newport),4021,80.40,Not Applicable,
Department for Business Innovation and Skills,Intellectual Property Office,10/07/2015,Office Machinery,People Places & Services Directorate,Xerox (UK) Ltd,1064450813,1027.19,Not Applicable,
Department for Business Innovation and Skills,Intellectual Property Office,10/07/2015,Office Machinery,People Places & Services Directorate,Xerox (UK) Ltd,1604450812,1027.19,Not Applicable,
Department for Business Innovation and Skills,Intellectual Property Office,10/07/2015,Office Machinery,People Places & Services Directorate,Xerox (UK) Ltd,1604474040,8072.52,Not Applicable,
Department for Business Innovation and Skills,Intellectual Property Office,10/07/2015,Office Machinery,People Places & Services Directorate,Xerox (UK) Ltd,1604474041,9727.79,Not Applicable,
Department for Business Innovation and Skills,Intellectual Property Office,10/07/2015,Office Machinery,People Places & Services Directorate,Xerox (UK) Ltd,1604474042,3786.17,Not Applicable,
Department for Business Innovation and Skills,Intellectual Property Office,29/07/2015,Office Machinery,People Places & Services Directorate,Xerox (UK) Ltd,1604562650,2499.60,Not Applicable,
Department for Business Innovation and Skills,Intellectual Property Office,10/07/2015,Office Machinery,People Places & Services Directorate,Xerox (UK) Ltd,900133303,5811.30,Not Applicable,
Department for Business Innovation and Skills,Intellectual Property Office,08/07/2015,Office Machinery,People Places & Services Directorate,Xerox Finance,96916435,3543.70,Not Applicable,
Department for Business Innovation and Skills,Intellectual Property Office,21/07/2015,Office Machinery,People Places & Services Directorate,Xerox Finance,96925308,34243.73,Not Applicable,
Department for Business Innovation and Skills,Intellectual Property Office,29/07/2015,Office Machinery,People Places & Services Directorate,Xerox Finance,96945941,3543.70,Not Applicable,
Department for Business Innovation and Skills,Intellectual Property Office,14/07/2015,Office Machinery,People Places & Services Directorate,Siemens Financial Services Ltd,244/15/0218737,2266.80,Not Applicable,
Department for Business Innovation and Skills,Intellectual Property Office,06/07/2015,Travel & Subsistence,Innovation Directorate,Veezu Ltd T/A Dragon Taxis (Newport),4021,100.20,Not Applicable,
Department for Business Innovation and Skills,Intellectual Property Office,29/07/2015,Information Technology,Innovation Directorate,European Patent Office,40243154,895.54,Not Applicable,
Department for Business Innovation and Skills,Intellectual Property Office,29/07/2015,Travel & Subsistence,Copyright and Enforcement Directorate,HRG UK,634749789,2771.96,Not Applicable,
Department for Business Innovation and Skills,Intellectual Property Office,06/07/2015,Travel & Subsistence,Copyright and Enforcement Directorate,Veezu Ltd T/A Dragon Taxis (Newport),4021,57.00,Not Applicable,
Department for Business Innovation and Skills,Intellectual Property Office,10/07/2015,Legal & Hearings,Finance Directorate,Department For Business Innovation & Ski,6.1511E+11,166250.00,Not Applicable,
Department for Business Innovation and Skills,Intellectual Property Office,02/07/2015,Miscellaneous Expenses General,Finance Directorate,Specialist Computer Centres Plc,OP/M019783,1315.64,Not Applicable,
Department for Business Innovation and Skills,Intellectual Property Office,16/07/2015,Miscellaneous Expenses General,Finance Directorate,Specialist Computer Centres Plc,OP/M025236,3030.16,Not Applicable,
Department for Business Innovation and Skills,Intellectual Property Office,08/07/2015,Printing and Binding,Finance Directorate,Williams Lea Ltd,CHP-BIS-IPO15060,720.00,Not Applicable,
Department for Business Innovation and Skills,Intellectual Property Office,30/07/2015,Office Supplies,Finance Directorate,Antalis,4935099,744.84,Not Applicable,
Department for Business Innovation and Skills,Intellectual Property Office,29/07/2015,Office Supplies,Finance Directorate,Antalis,5004216,1949.70,Not Applicable,
Department for Business Innovation and Skills,Intellectual Property Office,21/07/2015,Accommodation,People Places & Services Directorate,Office for National Statistics,1030401,62242.80,Not Applicable,
Department for Business Innovation and Skills,Intellectual Property Office,21/07/2015,Accommodation,People Places & Services Directorate,Office for National Statistics,1030401,192435.60,Not Applicable,
Department for Business Innovation and Skills,Intellectual Property Office,21/07/2015,Accommodation,People Places & Services Directorate,Office for National Statistics,1030434,254678.40,Not Applicable,
Department for Business Innovation and Skills,Intellectual Property Office,21/07/2015,Accommodation,People Places & Services Directorate,Office for National Statistics,1030519,-212231.99,Not Applicable,
Department for Business Innovation and Skills,Intellectual Property Office,21/07/2015,Accommodation,People Places & Services Directorate,Office for National Statistics,1030520,-25625.00,Not Applicable,
Department for Business Innovation and Skills,Intellectual Property Office,21/07/2015,Accommodation,People Places & Services Directorate,Office for National Statistics,1030520,-186606.99,Not Applicable,
Department for Business Innovation and Skills,Intellectual Property Office,20/07/2015,Staff Costs,People Places & Services Directorate,Capita Business Services  Ltd,X75083,3502.80,Not Applicable,
Department for Business Innovation and Skills,Intellectual Property Office,17/07/2015,Staff Costs,People Places & Services Directorate,ChangeQuest Ltd,608,4020.00,Not Applicable,
Department for Business Innovation and Skills,Intellectual Property Office,08/07/2015,Staff Costs,People Places & Services Directorate,OE Cam LLP,1598,1199.89,Not Applicable,
Department for Business Innovation and Skills,Intellectual Property Office,20/07/2015,Staff Costs,People Places & Services Directorate,OE Cam LLP,1625,2125.97,Not Applicable,
Department for Business Innovation and Skills,Intellectual Property Office,20/07/2015,Staff Costs,People Places & Services Directorate,World Trade Group Limited,INV2617,1834.80,Not Applicable,
Department for Business Innovation and Skills,Intellectual Property Office,17/07/2015,Staff Costs,People Places & Services Directorate,TMS Development International Ltd,10029,8640.00,Not Applicable,
Department for Business Innovation and Skills,Intellectual Property Office,27/07/2015,Staff Costs,People Places & Services Directorate,"Face 2 Face Psychotherapy, Training and",2,800.00,Not Applicable,
Department for Business Innovation and Skills,Intellectual Property Office,06/07/2015,Travel & Subsistence,Innovation Directorate,Veezu Ltd T/A Dragon Taxis (Newport),4021,126.36,Not Applicable,
Department for Business Innovation and Skills,Intellectual Property Office,08/07/2015,Supporting UK Business,Innovation Directorate,DJ Grigg,JEMAC PACKAGING,3000.00,Not Applicable,
Department for Business Innovation and Skills,Intellectual Property Office,10/07/2015,Supporting UK Business,Innovation Directorate,Harrison Goddard Foote,361666,3000.00,Not Applicable,
Department for Business Innovation and Skills,Intellectual Property Office,08/07/2015,Supporting UK Business,Innovation Directorate,Lincoln IP,4515,3000.00,Not Applicable,
Department for Business Innovation and Skills,Intellectual Property Office,08/07/2015,Supporting UK Business,Innovation Directorate,Lincoln IP,4545,3000.00,Not Applicable,
Department for Business Innovation and Skills,Intellectual Property Office,21/07/2015,Supporting UK Business,Innovation Directorate,Lincoln IP,4607,3000.00,Not Applicable,
Department for Business Innovation and Skills,Intellectual Property Office,21/07/2015,Supporting UK Business,Innovation Directorate,Marks & Clerk LLP,7060929,2996.40,Not Applicable,
Department for Business Innovation and Skills,Intellectual Property Office,08/07/2015,Supporting UK Business,Innovation Directorate,Marks & Clerk LLP,7061882,3000.00,Not Applicable,
Department for Business Innovation and Skills,Intellectual Property Office,22/07/2015,Miscellaneous Expenses General,Innovation Directorate,TNS UK LTD,260149681,33667.20,Not Applicable,
Department for Business Innovation and Skills,Intellectual Property Office,24/07/2015,Miscellaneous Expenses General,Innovation Directorate,SPA Future Thinking,16521,7242.00,Not Applicable,
Department for Business Innovation and Skills,Intellectual Property Office,08/07/2015,Supporting UK Business,Innovation Directorate,LAWRIE INTELLECTUAL PROPERTY,106443,3000.00,Not Applicable,
Department for Business Innovation and Skills,Intellectual Property Office,08/07/2015,Supporting UK Business,Innovation Directorate,LAWRIE INTELLECTUAL PROPERTY,106444,3000.00,Not Applicable,
Department for Business Innovation and Skills,Intellectual Property Office,28/07/2015,Supporting UK Business,Innovation Directorate,LAWRIE INTELLECTUAL PROPERTY,106521,3000.00,Not Applicable,
Department for Business Innovation and Skills,Intellectual Property Office,21/07/2015,Supporting UK Business,Innovation Directorate,LAWRIE INTELLECTUAL PROPERTY,106523,3000.00,Not Applicable,
Department for Business Innovation and Skills,Intellectual Property Office,08/07/2015,Supporting UK Business,Innovation Directorate,LAWRIE INTELLECTUAL PROPERTY,106533,3000.00,Not Applicable,
Department for Business Innovation and Skills,Intellectual Property Office,21/07/2015,Supporting UK Business,Innovation Directorate,LAWRIE INTELLECTUAL PROPERTY,106534,3000.00,Not Applicable,
Department for Business Innovation and Skills,Intellectual Property Office,01/07/2015,Supporting UK Business,Innovation Directorate,LAWRIE INTELLECTUAL PROPERTY,106535,3000.00,Not Applicable,
Department for Business Innovation and Skills,Intellectual Property Office,24/07/2015,Supporting UK Business,Innovation Directorate,LAWRIE INTELLECTUAL PROPERTY,106565,3000.00,Not Applicable,
Department for Business Innovation and Skills,Intellectual Property Office,17/07/2015,Supporting UK Business,Innovation Directorate,LAWRIE INTELLECTUAL PROPERTY,106597,3000.00,Not Applicable,
Department for Business Innovation and Skills,Intellectual Property Office,29/07/2015,Supporting UK Business,Innovation Directorate,LAWRIE INTELLECTUAL PROPERTY,106695,3000.00,Not Applicable,
Department for Business Innovation and Skills,Intellectual Property Office,08/07/2015,Supporting UK Business,Innovation Directorate,STEPHENS SCOWN LLP,43861,2520.00,Not Applicable,
Department for Business Innovation and Skills,Intellectual Property Office,29/07/2015,Supporting UK Business,Innovation Directorate,STEPHENS SCOWN LLP,44001,2520.00,Not Applicable,
Department for Business Innovation and Skills,Intellectual Property Office,08/07/2015,Supporting UK Business,Innovation Directorate,CAMERON INTELLECTUAL PROPERTY LTD,1428/15,3000.00,Not Applicable,
Department for Business Innovation and Skills,Intellectual Property Office,17/07/2015,Supporting UK Business,Innovation Directorate,CAMERON INTELLECTUAL PROPERTY LTD,1441/15,3000.00,Not Applicable,
Department for Business Innovation and Skills,Intellectual Property Office,08/07/2015,Supporting UK Business,Innovation Directorate,SHULMANS LLP,282053,3000.00,Not Applicable,
Department for Business Innovation and Skills,Intellectual Property Office,08/07/2015,Marketing & Publicity,Innovation Directorate,DAN ANTHONY PRESENTATIONS LTD,109,800.00,Not Applicable,
Department for Business Innovation and Skills,Intellectual Property Office,21/07/2015,Marketing & Publicity,Innovation Directorate,DAN ANTHONY PRESENTATIONS LTD,110,650.00,Not Applicable,
Department for Business Innovation and Skills,Intellectual Property Office,08/07/2015,Supporting UK Business,Innovation Directorate,Lean IP,INV2026,3000.00,Not Applicable,
Department for Business Innovation and Skills,Intellectual Property Office,08/07/2015,Supporting UK Business,Innovation Directorate,Lean IP,INV2027,3000.00,Not Applicable,
Department for Business Innovation and Skills,Intellectual Property Office,08/07/2015,Supporting UK Business,Innovation Directorate,Thorntons,878710,3000.00,Not Applicable,
Department for Business Innovation and Skills,Intellectual Property Office,08/07/2015,Supporting UK Business,Innovation Directorate,Metis Partners Ltd,739,3000.00,Not Applicable,
Department for Business Innovation and Skills,Intellectual Property Office,01/07/2015,Supporting UK Business,Innovation Directorate,Metis Partners Ltd,741,3000.00,Not Applicable,
Department for Business Innovation and Skills,Intellectual Property Office,21/07/2015,Supporting UK Business,Innovation Directorate,Metis Partners Ltd,759,3000.00,Not Applicable,
Department for Business Innovation and Skills,Intellectual Property Office,01/07/2015,Supporting UK Business,Innovation Directorate,GLP LLP,PG/PG/M32847/1,3000.00,Not Applicable,
Department for Business Innovation and Skills,Intellectual Property Office,07/07/2015,Marketing & Publicity,Innovation Directorate,Gov Today Ltd,S53314,1200.00,Not Applicable,
Department for Business Innovation and Skills,Intellectual Property Office,08/07/2015,Supporting UK Business,Innovation Directorate,The Intellectual Property Shop Ltd,CG150605,3000.00,Not Applicable,
Department for Business Innovation and Skills,Intellectual Property Office,01/07/2015,Supporting UK Business,Innovation Directorate,Coller IP Management Ltd,7381,3000.00,Not Applicable,
Department for Business Innovation and Skills,Intellectual Property Office,08/07/2015,Supporting UK Business,Innovation Directorate,Coller IP Management Ltd,7471,3000.00,Not Applicable,
Department for Business Innovation and Skills,Intellectual Property Office,31/07/2015,Supporting UK Business,Innovation Directorate,Coller IP Management Ltd,7564,2600.00,Not Applicable,
Department for Business Innovation and Skills,Intellectual Property Office,01/07/2015,Supporting UK Business,Innovation Directorate,Nabarro LLP,1249018,3000.00,Not Applicable,
Department for Business Innovation and Skills,Intellectual Property Office,01/07/2015,Supporting UK Business,Innovation Directorate,Murgitroyd & Company Ltd,13108/15,3000.00,Not Applicable,
Department for Business Innovation and Skills,Intellectual Property Office,23/07/2015,Supporting UK Business,Innovation Directorate,Murgitroyd & Company Ltd,16715/15,3000.00,Not Applicable,
Department for Business Innovation and Skills,Intellectual Property Office,08/07/2015,Supporting UK Business,Innovation Directorate,Bailey Walsh & Co,165465,3000.00,Not Applicable,
Department for Business Innovation and Skills,Intellectual Property Office,01/07/2015,Supporting UK Business,Innovation Directorate,Cloch Solicitors,15/0059,3000.00,Not Applicable,
Department for Business Innovation and Skills,Intellectual Property Office,01/07/2015,Supporting UK Business,Innovation Directorate,Blueprint Product Design Ltd,IN-201505-7-839,3000.00,Not Applicable,
Department for Business Innovation and Skills,Intellectual Property Office,10/07/2015,Supporting UK Business,Innovation Directorate,K. W. Peter & Co,101314,3000.00,Not Applicable,
Department for Business Innovation and Skills,Intellectual Property Office,17/07/2015,Supporting UK Business,Innovation Directorate,K. W. Peter & Co,101325,3000.00,Not Applicable,
Department for Business Innovation and Skills,Intellectual Property Office,10/07/2015,Supporting UK Business,Innovation Directorate,Burness Paull LLP,141514213,3000.00,Not Applicable,
Department for Business Innovation and Skills,Intellectual Property Office,21/07/2015,Supporting UK Business,Innovation Directorate,Ablett & Stebbing,250600,3000.00,Not Applicable,
Department for Business Innovation and Skills,Intellectual Property Office,17/07/2015,Information Technology,Innovation Directorate,Bureau Van Dijk Electronic Publishing Lt,746/15GB,19779.60,Not Applicable,
Department for Business Innovation and Skills,Intellectual Property Office,21/07/2015,Supporting UK Business,Innovation Directorate,Locke Lord UK LLP,20077775,3000.00,Not Applicable,
Department for Business Innovation and Skills,Intellectual Property Office,29/07/2015,Miscellaneous Expenses General,Innovation Directorate,Association of British Insurers,SI088601,5599.40,Not Applicable,
Department for Business Innovation and Skills,Intellectual Property Office,27/07/2015,Supporting UK Business,Innovation Directorate,Ancient Hume Ltd,3234,3000.00,Not Applicable,
Department for Business Innovation and Skills,Intellectual Property Office,08/07/2015,Supporting UK Business,International Cooperation,FOREIGN & COMMONWEALTH OFFICE,1078456,1432.13,Not Applicable,
Department for Business Innovation and Skills,Intellectual Property Office,08/07/2015,Supporting UK Business,International Cooperation,FOREIGN & COMMONWEALTH OFFICE,1078610,12470.34,Not Applicable,
Department for Business Innovation and Skills,Intellectual Property Office,08/07/2015,Supporting UK Business,International Cooperation,FOREIGN & COMMONWEALTH OFFICE,1078882,24503.31,Not Applicable,
Department for Business Innovation and Skills,Intellectual Property Office,21/07/2015,Marketing & Publicity,International Cooperation,SPA Future Thinking,16648,26480.40,Not Applicable,
Department for Business Innovation and Skills,Intellectual Property Office,29/07/2015,Travel & Subsistence,International Policy Directorate,HRG UK,634845361,3163.42,Not Applicable,
Department for Business Innovation and Skills,Intellectual Property Office,29/07/2015,Travel & Subsistence,International Policy Directorate,HRG UK,634863241,2934.06,Not Applicable,
Department for Business Innovation and Skills,Intellectual Property Office,29/07/2015,Travel & Subsistence,International Policy Directorate,HRG UK,634900517,2394.26,Not Applicable,
Department for Business Innovation and Skills,Intellectual Property Office,29/07/2015,Travel & Subsistence,International Policy Directorate,HRG UK,634904037,2771.96,Not Applicable,
Department for Business Innovation and Skills,Intellectual Property Office,06/07/2015,Travel & Subsistence,International Policy Directorate,Veezu Ltd T/A Dragon Taxis (Newport),4021,70.20,Not Applicable,
Department for Business Innovation and Skills,Intellectual Property Office,31/07/2015,Miscellaneous Expenses General,IT Directorate,British Standards Institution,94292095/1000,1333.20,Not Applicable,
Department for Business Innovation and Skills,Intellectual Property Office,07/07/2015,Information Technology,IT Directorate,Capita Business Services  Ltd,LO10050709,3166.61,Not Applicable,
Department for Business Innovation and Skills,Intellectual Property Office,10/07/2015,Information Technology,IT Directorate,Capita Business Services  Ltd,LO10053804,6333.22,Not Applicable,
Department for Business Innovation and Skills,Intellectual Property Office,10/07/2015,Information Technology,IT Directorate,Capita Business Services  Ltd,LO10053804,3166.61,Not Applicable,
Department for Business Innovation and Skills,Intellectual Property Office,28/07/2015,Information Technology,IT Directorate,Capita Business Services  Ltd,LO10056704,3123.10,Not Applicable,
Department for Business Innovation and Skills,Intellectual Property Office,08/07/2015,Information Technology,IT Directorate,LA International Computer Consultants Lt,LA333716,5199.24,Not Applicable,
Department for Business Innovation and Skills,Intellectual Property Office,08/07/2015,Information Technology,IT Directorate,LA International Computer Consultants Lt,LA336251,2599.62,Not Applicable,
Department for Business Innovation and Skills,Intellectual Property Office,27/07/2015,Information Technology,IT Directorate,LA International Computer Consultants Lt,LA338854,5234.38,Not Applicable,
Department for Business Innovation and Skills,Intellectual Property Office,06/07/2015,Travel & Subsistence,IT Directorate,Veezu Ltd T/A Dragon Taxis (Newport),4021,7.80,Not Applicable,
Department for Business Innovation and Skills,Intellectual Property Office,07/07/2015,Information Technology,IT Directorate,Capita Business Services  Ltd,LO10049172,10783.58,Not Applicable,
Department for Business Innovation and Skills,Intellectual Property Office,07/07/2015,Information Technology,IT Directorate,Capita Business Services  Ltd,LO10049172,2757.68,Not Applicable,
Department for Business Innovation and Skills,Intellectual Property Office,07/07/2015,Information Technology,IT Directorate,Capita Business Services  Ltd,LO10049172,3117.92,Not Applicable,
Department for Business Innovation and Skills,Intellectual Property Office,07/07/2015,Information Technology,IT Directorate,Capita Business Services  Ltd,LO10049172,5296.58,Not Applicable,
Department for Business Innovation and Skills,Intellectual Property Office,07/07/2015,Information Technology,IT Directorate,Capita Business Services  Ltd,LO10049172,5779.86,Not Applicable,
Department for Business Innovation and Skills,Intellectual Property Office,07/07/2015,Information Technology,IT Directorate,Capita Business Services  Ltd,LO10049172,2473.20,Not Applicable,
Department for Business Innovation and Skills,Intellectual Property Office,07/07/2015,Information Technology,IT Directorate,Capita Business Services  Ltd,LO10050709,5279.35,Not Applicable,
Department for Business Innovation and Skills,Intellectual Property Office,07/07/2015,Information Technology,IT Directorate,Capita Business Services  Ltd,LO10050709,304.38,Not Applicable,
Department for Business Innovation and Skills,Intellectual Property Office,07/07/2015,Information Technology,IT Directorate,Capita Business Services  Ltd,LO10050709,2579.98,Not Applicable,
Department for Business Innovation and Skills,Intellectual Property Office,08/07/2015,Information Technology,IT Directorate,Capita Business Services  Ltd,LO10052514,8035.56,Not Applicable,
Department for Business Innovation and Skills,Intellectual Property Office,08/07/2015,Information Technology,IT Directorate,Capita Business Services  Ltd,LO10052514,13286.78,Not Applicable,
Department for Business Innovation and Skills,Intellectual Property Office,08/07/2015,Information Technology,IT Directorate,Capita Business Services  Ltd,LO10052514,8952.58,Not Applicable,
Department for Business Innovation and Skills,Intellectual Property Office,10/07/2015,Information Technology,IT Directorate,Capita Business Services  Ltd,LO10053804,6203.50,Not Applicable,
Department for Business Innovation and Skills,Intellectual Property Office,10/07/2015,Information Technology,IT Directorate,Capita Business Services  Ltd,LO10053804,21030.99,Not Applicable,
Department for Business Innovation and Skills,Intellectual Property Office,10/07/2015,Information Technology,IT Directorate,Capita Business Services  Ltd,LO10053804,5486.87,Not Applicable,
Department for Business Innovation and Skills,Intellectual Property Office,10/07/2015,Information Technology,IT Directorate,Capita Business Services  Ltd,LO10053804,8673.21,Not Applicable,
Department for Business Innovation and Skills,Intellectual Property Office,10/07/2015,Information Technology,IT Directorate,Capita Business Services  Ltd,LO10053804,3235.20,Not Applicable,
Department for Business Innovation and Skills,Intellectual Property Office,21/07/2015,Information Technology,IT Directorate,Capita Business Services  Ltd,LO10054436,3459.84,Not Applicable,
Department for Business Innovation and Skills,Intellectual Property Office,21/07/2015,Information Technology,IT Directorate,Capita Business Services  Ltd,LO10054436,5427.60,Not Applicable,
Department for Business Innovation and Skills,Intellectual Property Office,21/07/2015,Information Technology,IT Directorate,Capita Business Services  Ltd,LO10054436,22151.25,Not Applicable,
Department for Business Innovation and Skills,Intellectual Property Office,21/07/2015,Information Technology,IT Directorate,Capita Business Services  Ltd,LO10054436,16693.32,Not Applicable,
Department for Business Innovation and Skills,Intellectual Property Office,28/07/2015,Information Technology,IT Directorate,Capita Business Services  Ltd,LO10056704,8160.46,Not Applicable,
Department for Business Innovation and Skills,Intellectual Property Office,28/07/2015,Information Technology,IT Directorate,Capita Business Services  Ltd,LO10056704,2537.28,Not Applicable,
Department for Business Innovation and Skills,Intellectual Property Office,28/07/2015,Information Technology,IT Directorate,Capita Business Services  Ltd,LO10056704,2992.56,Not Applicable,
Department for Business Innovation and Skills,Intellectual Property Office,28/07/2015,Information Technology,IT Directorate,Capita Business Services  Ltd,LO10056704,8053.55,Not Applicable,
Department for Business Innovation and Skills,Intellectual Property Office,28/07/2015,Information Technology,IT Directorate,Capita Business Services  Ltd,LO10056704,2915.84,Not Applicable,
Department for Business Innovation and Skills,Intellectual Property Office,24/07/2015,Pay Costs,IT Directorate,Hays Specialist Recruitment,1005627754,7761.84,Not Applicable,
Department for Business Innovation and Skills,Intellectual Property Office,02/07/2015,Information Technology,IT Directorate,LA International Computer Consultants Lt,LA328927,2159.28,Not Applicable,
Department for Business Innovation and Skills,Intellectual Property Office,08/07/2015,Information Technology,IT Directorate,LA International Computer Consultants Lt,LA333712,2431.26,Not Applicable,
Department for Business Innovation and Skills,Intellectual Property Office,08/07/2015,Information Technology,IT Directorate,LA International Computer Consultants Lt,LA333713,2454.73,Not Applicable,
Department for Business Innovation and Skills,Intellectual Property Office,08/07/2015,Information Technology,IT Directorate,LA International Computer Consultants Lt,LA336248,2451.67,Not Applicable,
Department for Business Innovation and Skills,Intellectual Property Office,08/07/2015,Information Technology,IT Directorate,LA International Computer Consultants Lt,LA336250,2492.90,Not Applicable,
Department for Business Innovation and Skills,Intellectual Property Office,08/07/2015,Information Technology,IT Directorate,LA International Computer Consultants Lt,LA336252,2804.78,Not Applicable,
Department for Business Innovation and Skills,Intellectual Property Office,14/07/2015,Information Technology,IT Directorate,LA International Computer Consultants Lt,LA337059,2282.76,Not Applicable,
Department for Business Innovation and Skills,Intellectual Property Office,17/07/2015,Information Technology,IT Directorate,LA International Computer Consultants Lt,LA338073,2622.72,Not Applicable,
Department for Business Innovation and Skills,Intellectual Property Office,17/07/2015,Information Technology,IT Directorate,LA International Computer Consultants Lt,LA338075,5480.66,Not Applicable,
Department for Business Innovation and Skills,Intellectual Property Office,17/07/2015,Information Technology,IT Directorate,LA International Computer Consultants Lt,LA338076,2810.40,Not Applicable,
Department for Business Innovation and Skills,Intellectual Property Office,27/07/2015,Information Technology,IT Directorate,LA International Computer Consultants Lt,LA338850,5142.50,Not Applicable,
Department for Business Innovation and Skills,Intellectual Property Office,27/07/2015,Information Technology,IT Directorate,LA International Computer Consultants Lt,LA338851,2476.50,Not Applicable,
Department for Business Innovation and Skills,Intellectual Property Office,27/07/2015,Information Technology,IT Directorate,LA International Computer Consultants Lt,LA338853,2783.42,Not Applicable,
Department for Business Innovation and Skills,Intellectual Property Office,27/07/2015,Information Technology,IT Directorate,LA International Computer Consultants Lt,LA338855,2810.40,Not Applicable,
Department for Business Innovation and Skills,Intellectual Property Office,29/07/2015,Information Technology,IT Directorate,LA International Computer Consultants Lt,LA339117,2810.40,Not Applicable,
Department for Business Innovation and Skills,Intellectual Property Office,01/07/2015,Information Technology,IT Directorate,Drake AV Video Ltd,71193,4441.20,Not Applicable,
Department for Business Innovation and Skills,Intellectual Property Office,16/07/2015,Information Technology,IT Directorate,Insight Direct (UK) Ltd,2378433,1788.77,Not Applicable,
Department for Business Innovation and Skills,Intellectual Property Office,30/07/2015,Information Technology,IT Directorate,Speech Empowered Computing,276,672.30,Not Applicable,
Department for Business Innovation and Skills,Intellectual Property Office,27/07/2015,Information Technology,IT Directorate,Computacenter (UK) ltd,3880534920,14852.16,Not Applicable,
Department for Business Innovation and Skills,Intellectual Property Office,30/07/2015,Staff Costs,IT Directorate,GLOBAL KNOWLEDGE NETWORK TRAINING LTD,268242,1538.40,Not Applicable,
Department for Business Innovation and Skills,Intellectual Property Office,21/07/2015,Information Technology,IT Directorate,HORNBILL SERVICE MANAGEMENT LIMITED,INV11530,14603.40,Not Applicable,
Department for Business Innovation and Skills,Intellectual Property Office,16/07/2015,Information Technology,IT Directorate,Bytes Software Services Ltd,418915,791.10,Not Applicable,
Department for Business Innovation and Skills,Intellectual Property Office,17/07/2015,Staff Costs,IT Directorate,Redrock Consulting Ltd,4885,5731.38,Not Applicable,
Department for Business Innovation and Skills,Intellectual Property Office,17/07/2015,Staff Costs,IT Directorate,Redrock Consulting Ltd,4886,5731.38,Not Applicable,
Department for Business Innovation and Skills,Intellectual Property Office,08/07/2015,Information Technology,IT Directorate,Bell Integrated Communications Ltd,1985,4620.00,Not Applicable,
Department for Business Innovation and Skills,Intellectual Property Office,10/07/2015,Information Technology,IT Directorate,Bell Integrated Communications Ltd,1990,17073.60,Not Applicable,
Department for Business Innovation and Skills,Intellectual Property Office,07/07/2015,Staff Costs,IT Directorate,Harvey Nash PLC,IMK/2944/SL,8400.00,Not Applicable,
Department for Business Innovation and Skills,Intellectual Property Office,16/07/2015,Staff Costs,IT Directorate,Harvey Nash PLC,IMK/2945/PL,12000.00,Not Applicable,
Department for Business Innovation and Skills,Intellectual Property Office,31/07/2015,Information Technology,IT Directorate,NTA Monitor Limited,16190,1780.80,Not Applicable,
Department for Business Innovation and Skills,Intellectual Property Office,24/07/2015,Miscellaneous Expenses General,IT Directorate,BluePhoenix Solutions UK Ltd T/A MODERN,104150024,1127.16,Not Applicable,
Department for Business Innovation and Skills,Intellectual Property Office,28/07/2015,Telecoms,IT Directorate,British  Telecom,GP00002104M0237Z,3462.60,Not Applicable,
Department for Business Innovation and Skills,Intellectual Property Office,03/07/2015,Telecoms,IT Directorate,British  Telecom,SW16905704S001RG,2994.00,Not Applicable,
Department for Business Innovation and Skills,Intellectual Property Office,08/07/2015,Telecoms,IT Directorate,British  Telecom,VP02239170M16201,8349.19,Not Applicable,
Department for Business Innovation and Skills,Intellectual Property Office,22/07/2015,Telecoms,IT Directorate,British  Telecom,VP02239170M16301,8554.31,Not Applicable,
Department for Business Innovation and Skills,Intellectual Property Office,28/07/2015,Telecoms,IT Directorate,British  Telecom,WM39430908Q014FY,2036.90,Not Applicable,
Department for Business Innovation and Skills,Intellectual Property Office,07/07/2015,Information Technology,IT Directorate,Capita Business Services  Ltd,LO10049172,8475.85,Not Applicable,
Department for Business Innovation and Skills,Intellectual Property Office,07/07/2015,Information Technology,IT Directorate,Capita Business Services  Ltd,LO10049172,5592.54,Not Applicable,
Department for Business Innovation and Skills,Intellectual Property Office,07/07/2015,Information Technology,IT Directorate,Capita Business Services  Ltd,LO10049172,4474.03,Not Applicable,
Department for Business Innovation and Skills,Intellectual Property Office,07/07/2015,Information Technology,IT Directorate,Capita Business Services  Ltd,LO10049172,3355.52,Not Applicable,
Department for Business Innovation and Skills,Intellectual Property Office,07/07/2015,Information Technology,IT Directorate,Capita Business Services  Ltd,LO10049172,3151.51,Not Applicable,
Department for Business Innovation and Skills,Intellectual Property Office,07/07/2015,Information Technology,IT Directorate,Capita Business Services  Ltd,LO10049172,5592.54,Not Applicable,
Department for Business Innovation and Skills,Intellectual Property Office,07/07/2015,Information Technology,IT Directorate,Capita Business Services  Ltd,LO10050709,3198.72,Not Applicable,
Department for Business Innovation and Skills,Intellectual Property Office,07/07/2015,Information Technology,IT Directorate,Capita Business Services  Ltd,LO10050709,2930.83,Not Applicable,
Department for Business Innovation and Skills,Intellectual Property Office,08/07/2015,Information Technology,IT Directorate,Capita Business Services  Ltd,LO10052514,3198.72,Not Applicable,
Department for Business Innovation and Skills,Intellectual Property Office,08/07/2015,Information Technology,IT Directorate,Capita Business Services  Ltd,LO10052514,2938.57,Not Applicable,
Department for Business Innovation and Skills,Intellectual Property Office,08/07/2015,Information Technology,IT Directorate,Capita Business Services  Ltd,LO10052514,3215.45,Not Applicable,
Department for Business Innovation and Skills,Intellectual Property Office,10/07/2015,Information Technology,IT Directorate,Capita Business Services  Ltd,LO10053804,3215.45,Not Applicable,
Department for Business Innovation and Skills,Intellectual Property Office,10/07/2015,Information Technology,IT Directorate,Capita Business Services  Ltd,LO10053804,3151.51,Not Applicable,
Department for Business Innovation and Skills,Intellectual Property Office,21/07/2015,Information Technology,IT Directorate,Capita Business Services  Ltd,LO10054436,2623.60,Not Applicable,
Department for Business Innovation and Skills,Intellectual Property Office,21/07/2015,Information Technology,IT Directorate,Capita Business Services  Ltd,LO10054436,3151.51,Not Applicable,
Department for Business Innovation and Skills,Intellectual Property Office,21/07/2015,Information Technology,IT Directorate,Capita Business Services  Ltd,LO10054436,5874.51,Not Applicable,
Department for Business Innovation and Skills,Intellectual Property Office,28/07/2015,Information Technology,IT Directorate,Capita Business Services  Ltd,LO10056704,3198.72,Not Applicable,
Department for Business Innovation and Skills,Intellectual Property Office,28/07/2015,Information Technology,IT Directorate,Capita Business Services  Ltd,LO10056704,3302.68,Not Applicable,
Department for Business Innovation and Skills,Intellectual Property Office,28/07/2015,Information Technology,IT Directorate,Capita Business Services  Ltd,LO10056704,3215.45,Not Applicable,
Department for Business Innovation and Skills,Intellectual Property Office,28/07/2015,Information Technology,IT Directorate,Capita Business Services  Ltd,LO10056704,12227.50,Not Applicable,
Department for Business Innovation and Skills,Intellectual Property Office,28/07/2015,Information Technology,IT Directorate,Capita Business Services  Ltd,LO10056704,3117.44,Not Applicable,
Department for Business Innovation and Skills,Intellectual Property Office,10/07/2015,Miscellaneous Expenses General,IT Directorate,Evolve Business Consultancy,6848,5400.00,Not Applicable,
Department for Business Innovation and Skills,Intellectual Property Office,07/07/2015,Information Technology,IT Directorate,Insight Direct (UK) Ltd,2391476,1490.40,Not Applicable,
Department for Business Innovation and Skills,Intellectual Property Office,07/07/2015,Information Technology,IT Directorate,LA International Computer Consultants Lt,LA330352,5153.02,Not Applicable,
Department for Business Innovation and Skills,Intellectual Property Office,08/07/2015,Information Technology,IT Directorate,LA International Computer Consultants Lt,LA333714,5743.06,Not Applicable,
Department for Business Innovation and Skills,Intellectual Property Office,08/07/2015,Information Technology,IT Directorate,LA International Computer Consultants Lt,LA333715,8834.87,Not Applicable,
Department for Business Innovation and Skills,Intellectual Property Office,08/07/2015,Information Technology,IT Directorate,LA International Computer Consultants Lt,LA336247,2167.27,Not Applicable,
Department for Business Innovation and Skills,Intellectual Property Office,08/07/2015,Information Technology,IT Directorate,LA International Computer Consultants Lt,LA336249,3146.88,Not Applicable,
Department for Business Innovation and Skills,Intellectual Property Office,14/07/2015,Information Technology,IT Directorate,LA International Computer Consultants Lt,LA337058,1807.00,Not Applicable,
Department for Business Innovation and Skills,Intellectual Property Office,14/07/2015,Information Technology,IT Directorate,LA International Computer Consultants Lt,LA337060,9369.83,Not Applicable,
Department for Business Innovation and Skills,Intellectual Property Office,17/07/2015,Information Technology,IT Directorate,LA International Computer Consultants Lt,LA338072,945.46,Not Applicable,
Department for Business Innovation and Skills,Intellectual Property Office,17/07/2015,Information Technology,IT Directorate,LA International Computer Consultants Lt,LA338074,6333.10,Not Applicable,
Department for Business Innovation and Skills,Intellectual Property Office,27/07/2015,Information Technology,IT Directorate,LA International Computer Consultants Lt,LA338849,2237.76,Not Applicable,
Department for Business Innovation and Skills,Intellectual Property Office,27/07/2015,Information Technology,IT Directorate,LA International Computer Consultants Lt,LA338852,3146.88,Not Applicable,
Department for Business Innovation and Skills,Intellectual Property Office,31/07/2015,Travel & Subsistence,IT Directorate,Leasedrive Velo Rental Management Ltd,RHI01396296,945.17,Not Applicable,
Department for Business Innovation and Skills,Intellectual Property Office,20/07/2015,Travel & Subsistence,IT Directorate,Leasedrive Velo Rental Management Ltd,RHI01413806,945.17,Not Applicable,
Department for Business Innovation and Skills,Intellectual Property Office,02/07/2015,Information Technology,IT Directorate,Satisnet Ltd,10181,3554.40,Not Applicable,
Department for Business Innovation and Skills,Intellectual Property Office,24/07/2015,Information Technology,IT Directorate,Softcat Ltd,INV01182309,13623.30,Not Applicable,
Department for Business Innovation and Skills,Intellectual Property Office,24/07/2015,Information Technology,IT Directorate,Specialist Computer Centres Plc,OP/M029308,6224.76,Not Applicable,
Department for Business Innovation and Skills,Intellectual Property Office,27/07/2015,Information Technology,IT Directorate,Specialist Computer Centres Plc,OP/M029932,1922.54,Not Applicable,
Department for Business Innovation and Skills,Intellectual Property Office,23/07/2015,Telecoms,IT Directorate,Talk Talk Business,13756115,653.08,Not Applicable,
Department for Business Innovation and Skills,Intellectual Property Office,06/07/2015,Travel & Subsistence,IT Directorate,Veezu Ltd T/A Dragon Taxis (Newport),4021,31.20,Not Applicable,
Department for Business Innovation and Skills,Intellectual Property Office,10/07/2015,Information Technology,IT Directorate,Probrand Ltd,OP/I513178,987.62,Not Applicable,
Department for Business Innovation and Skills,Intellectual Property Office,10/07/2015,Information Technology,IT Directorate,Probrand Ltd,OP/I513622,3908.52,Not Applicable,
Department for Business Innovation and Skills,Intellectual Property Office,10/07/2015,Telecoms,IT Directorate,Vodafone Corporate Ltd,UK10/052015/6044,1198.80,Not Applicable,
Department for Business Innovation and Skills,Intellectual Property Office,22/07/2015,Telecoms,IT Directorate,ZEN INTERNET LIMITED,18842115,4713.52,Not Applicable,
Department for Business Innovation and Skills,Intellectual Property Office,08/07/2015,Information Technology,IT Directorate,CSA WAVERLEY,IN661271,886.62,Not Applicable,
Department for Business Innovation and Skills,Intellectual Property Office,08/07/2015,Information Technology,IT Directorate,CSA WAVERLEY,IN661404,2114.99,Not Applicable,
Department for Business Innovation and Skills,Intellectual Property Office,24/07/2015,Information Technology,IT Directorate,CSA WAVERLEY,IN661411,38992.96,Not Applicable,
Department for Business Innovation and Skills,Intellectual Property Office,30/07/2015,Information Technology,IT Directorate,CSA WAVERLEY,IN661539,7349.23,Not Applicable,
Department for Business Innovation and Skills,Intellectual Property Office,24/07/2015,Miscellaneous Expenses General,IT Directorate,Open Connections Solutions Ltd,270179,1036.80,Not Applicable,
Department for Business Innovation and Skills,Intellectual Property Office,08/07/2015,Telecoms,IT Directorate,THREE,AFJ11338418,952.68,Not Applicable,
Department for Business Innovation and Skills,Intellectual Property Office,31/07/2015,Information Technology,IT Directorate,SANDHILL CONSULTANTS LTD,IN4058334,2400.00,Not Applicable,
Department for Business Innovation and Skills,Intellectual Property Office,08/07/2015,Telecoms,IT Directorate,EE Ltd,1193314186,4170.12,Not Applicable,
Department for Business Innovation and Skills,Intellectual Property Office,24/07/2015,Telecoms,IT Directorate,EE Ltd,1198535334,4671.41,Not Applicable,
Department for Business Innovation and Skills,Intellectual Property Office,31/07/2015,Telecoms,IT Directorate,VODAFONE LIMITED,76864764,5008.48,Not Applicable,
Department for Business Innovation and Skills,Intellectual Property Office,14/07/2015,Telecoms,IT Directorate,VODAFONE LIMITED,UK10/072015/4608,3322.08,Not Applicable,
Department for Business Innovation and Skills,Intellectual Property Office,07/07/2015,Information Technology,IT Directorate,XMA LIMITED,Y427160,2968.80,Not Applicable,
Department for Business Innovation and Skills,Intellectual Property Office,10/07/2015,Information Technology,IT Directorate,XMA LIMITED,Y440175,4459.32,Not Applicable,
Department for Business Innovation and Skills,Intellectual Property Office,14/07/2015,Telecoms,IT Directorate,Janet UK Ltd,OP/I048163,6356.38,Not Applicable,
Department for Business Innovation and Skills,Intellectual Property Office,29/07/2015,Information Technology,IT Directorate,Sword SA,SIP-CGT-F1505106,40814.34,Not Applicable,
Department for Business Innovation and Skills,Intellectual Property Office,01/07/2015,Information Technology,IT Directorate,Fujitsu Services Ltd,210077,156495.60,Not Applicable,
Department for Business Innovation and Skills,Intellectual Property Office,06/07/2015,Travel & Subsistence,Finance Directorate,Veezu Ltd T/A Dragon Taxis (Newport),4021,7.80,Not Applicable,
Department for Business Innovation and Skills,Intellectual Property Office,22/07/2015,Accommodation,People Places & Services Directorate,Corona Energy,10267459,565.24,Not Applicable,
Department for Business Innovation and Skills,Intellectual Property Office,10/07/2015,Accommodation,People Places & Services Directorate,EDF ENERGY,849421000-JUN15,1366.37,Not Applicable,
Department for Business Innovation and Skills,Intellectual Property Office,29/07/2015,Information Technology,Finance Directorate,Companies House,S0001398745,225000.00,Not Applicable,
Department for Business Innovation and Skills,Intellectual Property Office,08/07/2015,Miscellaneous Expenses General,Finance Directorate,Advanced Business Solutions,ARIN/99020736,2081.96,Not Applicable,
Department for Business Innovation and Skills,Intellectual Property Office,22/07/2015,Miscellaneous Expenses General,Finance Directorate,Advanced Business Solutions,ARIN/99020890,726.19,Not Applicable,
Department for Business Innovation and Skills,Intellectual Property Office,22/07/2015,Miscellaneous Expenses General,Finance Directorate,Advanced Business Solutions,ARIN/99020891,1637.82,Not Applicable,
Department for Business Innovation and Skills,Intellectual Property Office,30/07/2015,Pay Costs,Finance Directorate,Accountancy Recruitment Wales,1713,641.95,Not Applicable,
Department for Business Innovation and Skills,Intellectual Property Office,30/07/2015,Pay Costs,Finance Directorate,Accountancy Recruitment Wales,1714,668.70,Not Applicable,
Department for Business Innovation and Skills,Intellectual Property Office,30/07/2015,Pay Costs,Finance Directorate,Accountancy Recruitment Wales,1732,789.08,Not Applicable,
Department for Business Innovation and Skills,Intellectual Property Office,30/07/2015,Pay Costs,Finance Directorate,Accountancy Recruitment Wales,1733,690.77,Not Applicable,
Department for Business Innovation and Skills,Intellectual Property Office,30/07/2015,Pay Costs,Finance Directorate,Accountancy Recruitment Wales,1738,610.75,Not Applicable,
Department for Business Innovation and Skills,Intellectual Property Office,30/07/2015,Pay Costs,Finance Directorate,Accountancy Recruitment Wales,1743,650.87,Not Applicable,
Department for Business Innovation and Skills,Intellectual Property Office,30/07/2015,Pay Costs,Finance Directorate,Accountancy Recruitment Wales,1756,601.84,Not Applicable,
Department for Business Innovation and Skills,Intellectual Property Office,30/07/2015,Pay Costs,Finance Directorate,Accountancy Recruitment Wales,1762,659.78,Not Applicable,
Department for Business Innovation and Skills,Intellectual Property Office,29/07/2015,Pay Costs,Finance Directorate,Accountancy Recruitment Wales,1764,623.62,Not Applicable,
Department for Business Innovation and Skills,Intellectual Property Office,31/07/2015,Pay Costs,Finance Directorate,Accountancy Recruitment Wales,1770,719.56,Not Applicable,
Department for Business Innovation and Skills,Intellectual Property Office,31/07/2015,Pay Costs,Finance Directorate,Accountancy Recruitment Wales,1771,642.80,Not Applicable,
Department for Business Innovation and Skills,Intellectual Property Office,08/07/2015,Marketing & Publicity,Innovation Directorate,South Wales Chamber of Commerce,102033,720.00,Not Applicable,
Department for Business Innovation and Skills,Intellectual Property Office,06/07/2015,Travel & Subsistence,Innovation Directorate,Veezu Ltd T/A Dragon Taxis (Newport),4021,39.00,Not Applicable,
Department for Business Innovation and Skills,Intellectual Property Office,08/07/2015,Marketing & Publicity,Innovation Directorate,Aardman Animations Ltd,30426,1539.60,Not Applicable,
Department for Business Innovation and Skills,Intellectual Property Office,08/07/2015,Marketing & Publicity,Innovation Directorate,Aardman Animations Ltd,30427,910.80,Not Applicable,
Department for Business Innovation and Skills,Intellectual Property Office,10/07/2015,Marketing & Publicity,Innovation Directorate,Aardman Animations Ltd,30512,72000.00,Not Applicable,
Department for Business Innovation and Skills,Intellectual Property Office,27/07/2015,Marketing & Publicity,Innovation Directorate,Aardman Animations Ltd,30570,910.80,Not Applicable,
Department for Business Innovation and Skills,Intellectual Property Office,14/07/2015,Marketing & Publicity,Innovation Directorate,Holiday Inn Stratford Upon Avon,IPO-010715,875.50,Not Applicable,
Department for Business Innovation and Skills,Intellectual Property Office,14/07/2015,Marketing & Publicity,Innovation Directorate,University of Reading,107771,822.72,Not Applicable,
Department for Business Innovation and Skills,Intellectual Property Office,23/07/2015,Marketing & Publicity,Innovation Directorate,Innovation North East Ltd,INV-21,1140.00,Not Applicable,
Department for Business Innovation and Skills,Intellectual Property Office,06/07/2015,Travel & Subsistence,Patents Directorate,Veezu Ltd T/A Dragon Taxis (Newport),4021,7.80,Not Applicable,
Department for Business Innovation and Skills,Intellectual Property Office,27/07/2015,Staff Costs,Patents Directorate,BMVC,52995,1235.00,Not Applicable,
Department for Business Innovation and Skills,Intellectual Property Office,08/07/2015,Office Supplies,Patents Directorate,British Library,139754712,2749.18,Not Applicable,
Department for Business Innovation and Skills,Intellectual Property Office,06/07/2015,Office Machinery,Patents Directorate,Xerox (UK) Ltd,1604364067,1144.62,Not Applicable,
Department for Business Innovation and Skills,Intellectual Property Office,16/07/2015,Staff Costs,Patents Directorate,University of Cambridge,DD878051,1056.00,Not Applicable,
Department for Business Innovation and Skills,Intellectual Property Office,21/07/2015,Legal & Hearings,Patents Directorate,Government Legal Department,418686,7680.24,Not Applicable,
Department for Business Innovation and Skills,Intellectual Property Office,31/07/2015,Information Technology,Patents Directorate,Sedao Ltd,3822,3625.20,Not Applicable,
Department for Business Innovation and Skills,Intellectual Property Office,29/07/2015,Information Technology,Patents Directorate,European Patent Office,40244617,87423.91,Not Applicable,
Department for Business Innovation and Skills,Intellectual Property Office,29/07/2015,Information Technology,Patents Directorate,European Patent Office,40244903,69303.48,Not Applicable,
Department for Business Innovation and Skills,Intellectual Property Office,29/07/2015,Information Technology,Patents Directorate,European Patent Office,40246109,80632.90,Not Applicable,
Department for Business Innovation and Skills,Intellectual Property Office,29/07/2015,Information Technology,Patents Directorate,STN,9340280313,9915.26,Not Applicable,
Department for Business Innovation and Skills,Intellectual Property Office,29/07/2015,Information Technology,Patents Directorate,Beijing Zhong Xian Dian Zi Tech,20150602014,32615.79,Not Applicable,
Department for Business Innovation and Skills,Intellectual Property Office,21/07/2015,Miscellaneous Expenses General,Patents Directorate,Ministry of Justice (MoJ),10/RL110/279,71428.61,Not Applicable,
Department for Business Innovation and Skills,Intellectual Property Office,29/07/2015,Travel & Subsistence,Patents Directorate,HRG UK,634697461,632.00,Not Applicable,
Department for Business Innovation and Skills,Intellectual Property Office,29/07/2015,Travel & Subsistence,Patents Directorate,HRG UK,634697719,2064.56,Not Applicable,
Department for Business Innovation and Skills,Intellectual Property Office,06/07/2015,Travel & Subsistence,Patents Directorate,Veezu Ltd T/A Dragon Taxis (Newport),4021,7.80,Not Applicable,
Department for Business Innovation and Skills,Intellectual Property Office,31/07/2015,Pay Costs,Patents Directorate,Brook Street (UK) Ltd,30296156,522.40,Not Applicable,
Department for Business Innovation and Skills,Intellectual Property Office,29/07/2015,Travel & Subsistence,Patents Directorate,HRG UK,634678457,546.29,Not Applicable,
Department for Business Innovation and Skills,Intellectual Property Office,29/07/2015,Travel & Subsistence,Patents Directorate,HRG UK,634767120,531.08,Not Applicable,
Department for Business Innovation and Skills,Intellectual Property Office,29/07/2015,Travel & Subsistence,Patents Directorate,HRG UK,634904372,3710.56,Not Applicable,
Department for Business Innovation and Skills,Intellectual Property Office,30/07/2015,Legal & Hearings,People Places & Services Directorate,Capital Law LLP,20031402,702.00,Not Applicable,
Department for Business Innovation and Skills,Intellectual Property Office,21/07/2015,Accommodation,People Places & Services Directorate,Healthy Workstations Ltd,INV27033,709.04,Not Applicable,
Department for Business Innovation and Skills,Intellectual Property Office,14/07/2015,Miscellaneous Expenses General,People Places & Services Directorate,On Your Bike,33078,1150.00,Not Applicable,
Department for Business Innovation and Skills,Intellectual Property Office,28/07/2015,Miscellaneous Expenses General,People Places & Services Directorate,On Your Bike,33105,999.98,Not Applicable,
Department for Business Innovation and Skills,Intellectual Property Office,08/07/2015,Postage & Delivery Costs,People Places & Services Directorate,Parcelforce Worldwide,9050107861,603.85,Not Applicable,
Department for Business Innovation and Skills,Intellectual Property Office,31/07/2015,Postage & Delivery Costs,People Places & Services Directorate,Parcelforce Worldwide,9050293988,1052.68,Not Applicable,
Department for Business Innovation and Skills,Intellectual Property Office,08/07/2015,Telecoms,People Places & Services Directorate,Royal Mail,9049979181,1568.88,Not Applicable,
Department for Business Innovation and Skills,Intellectual Property Office,14/07/2015,Postage & Delivery Costs,People Places & Services Directorate,Royal Mail,9050113533,1232.15,Not Applicable,
Department for Business Innovation and Skills,Intellectual Property Office,08/07/2015,Staff Costs,People Places & Services Directorate,Sanderson Recruitment Plc,153699,7061.28,Not Applicable,
Department for Business Innovation and Skills,Intellectual Property Office,17/07/2015,Miscellaneous Expenses General,People Places & Services Directorate,Santia Consulting Ltd,C0012585-INV,996.00,Not Applicable,
Department for Business Innovation and Skills,Intellectual Property Office,24/07/2015,Miscellaneous Expenses General,People Places & Services Directorate,Santia Consulting Ltd,C0013371-INV,690.00,Not Applicable,
Department for Business Innovation and Skills,Intellectual Property Office,17/07/2015,Accommodation,People Places & Services Directorate,Senator International Ltd,S01252295,1705.92,Not Applicable,
Department for Business Innovation and Skills,Intellectual Property Office,16/07/2015,Miscellaneous Expenses General,People Places & Services Directorate,UK Shared Business Services Ltd,SBS-12274,42515.90,Not Applicable,
Department for Business Innovation and Skills,Intellectual Property Office,10/07/2015,Postage & Delivery Costs,People Places & Services Directorate,CitySprint (UK) Ltd,1371681,3099.53,Not Applicable,
Department for Business Innovation and Skills,Intellectual Property Office,24/07/2015,Staff Costs,People Places & Services Directorate,P&MM Ltd,1021859,8289.38,Not Applicable,
Department for Business Innovation and Skills,Intellectual Property Office,24/07/2015,Staff Costs,People Places & Services Directorate,P&MM Ltd,502807,7267.00,Not Applicable,
Department for Business Innovation and Skills,Intellectual Property Office,16/07/2015,Miscellaneous Expenses General,People Places & Services Directorate,GALLESE DESIGN LTD,124/01,2400.00,Not Applicable,
Department for Business Innovation and Skills,Intellectual Property Office,17/07/2015,Information Technology,People Places & Services Directorate,NLA Media Access Limited,Q363150,2192.40,Not Applicable,
Department for Business Innovation and Skills,Intellectual Property Office,10/07/2015,Postage & Delivery Costs,People Places & Services Directorate,Neopost Ltd,705614-03JUL15,10000.00,Not Applicable,
Department for Business Innovation and Skills,Intellectual Property Office,10/07/2015,Postage & Delivery Costs,People Places & Services Directorate,Neopost Ltd,828158-08JUL15,2000.00,Not Applicable,
Department for Business Innovation and Skills,Intellectual Property Office,29/07/2015,Staff Costs,People Places & Services Directorate,Dynamic Systems Development Method Ltd,442373441,1872.00,Not Applicable,
Department for Business Innovation and Skills,Intellectual Property Office,31/07/2015,Pay Costs,Innovation Directorate,Brook Street (UK) Ltd,30236605,1522.78,Not Applicable,
Department for Business Innovation and Skills,Intellectual Property Office,17/07/2015,Pay Costs,Innovation Directorate,Brook Street (UK) Ltd,30272231,1594.32,Not Applicable,
Department for Business Innovation and Skills,Intellectual Property Office,17/07/2015,Pay Costs,Innovation Directorate,Brook Street (UK) Ltd,30272231,350.50,Not Applicable,
Department for Business Innovation and Skills,Intellectual Property Office,28/07/2015,Pay Costs,Innovation Directorate,Brook Street (UK) Ltd,30283775,870.17,Not Applicable,
Department for Business Innovation and Skills,Intellectual Property Office,28/07/2015,Pay Costs,Innovation Directorate,Brook Street (UK) Ltd,30283775,974.22,Not Applicable,
Department for Business Innovation and Skills,Intellectual Property Office,31/07/2015,Pay Costs,Innovation Directorate,Brook Street (UK) Ltd,30296156,2052.50,Not Applicable,
Department for Business Innovation and Skills,Intellectual Property Office,06/07/2015,Travel & Subsistence,Innovation Directorate,Veezu Ltd T/A Dragon Taxis (Newport),4021,25.20,Not Applicable,
Department for Business Innovation and Skills,Intellectual Property Office,29/07/2015,Staff Costs,Innovation Directorate,Home Learning College,HLC102034,2645.00,Not Applicable,
Department for Business Innovation and Skills,Intellectual Property Office,08/07/2015,Staff Costs,Innovation Directorate,Coleg y Cymoedd,30001874,606.00,Not Applicable,
Department for Business Innovation and Skills,Intellectual Property Office,10/07/2015,Miscellaneous Expenses General,Trade Marks Directorate,Clio Enterprises Ltd,3299,1072.50,Not Applicable,
Department for Business Innovation and Skills,Intellectual Property Office,08/07/2015,Legal & Hearings,Trade Marks Directorate,Marten Walsh Cherer Ltd,89145,3139.40,Not Applicable,
Department for Business Innovation and Skills,Intellectual Property Office,21/07/2015,Legal & Hearings,Trade Marks Directorate,Government Legal Department,418686,12482.32,Not Applicable,
Department for Business Innovation and Skills,Intellectual Property Office,20/07/2015,Miscellaneous Expenses General,Trade Marks Directorate,FCO Services,6050999,1670.54,Not Applicable,
Department for Business Innovation and Skills,Intellectual Property Office,08/07/2015,Information Technology,Trade Marks Directorate,Sedao Ltd,3812,910.80,Not Applicable,
Department for Business Innovation and Skills,Intellectual Property Office,31/07/2015,Pay Costs,Trade Marks Directorate,Brook Street (UK) Ltd,30236605,403.30,Not Applicable,
Department for Business Innovation and Skills,Intellectual Property Office,17/07/2015,Pay Costs,Trade Marks Directorate,Brook Street (UK) Ltd,30272231,399.79,Not Applicable,
Department for Business Innovation and Skills,Intellectual Property Office,28/07/2015,Pay Costs,Trade Marks Directorate,Brook Street (UK) Ltd,30283775,533.06,Not Applicable,
Department for Business Innovation and Skills,Intellectual Property Office,31/07/2015,Pay Costs,Trade Marks Directorate,Brook Street (UK) Ltd,30296156,557.60,Not Applicable,
Department for Business Innovation and Skills,Intellectual Property Office,06/07/2015,Travel & Subsistence,Trade Marks Directorate,Veezu Ltd T/A Dragon Taxis (Newport),4021,390.00,Not Applicable,
Department for Business Innovation and Skills,Intellectual Property Office,06/07/2015,Travel & Subsistence,Trade Marks Directorate,Veezu Ltd T/A Dragon Taxis (Newport),4021,63.00,Not Applicable,
Department for Business Innovation and Skills,Intellectual Property Office,30/07/2015,Miscellaneous Expenses General,Trade Marks Directorate,The Producers,34155,936.00,Not Applicable,
Department for Business Innovation and Skills,Intellectual Property Office,27/07/2015,Miscellaneous Expenses General,IT Directorate,INDIGOBLUE CONSULTING LIMITED,1503341,11420.80,Not Applicable,
Department for Business Innovation and Skills,Intellectual Property Office,29/07/2015,Travel & Subsistence,International Policy Directorate,HRG UK,634628930,632.87,Not Applicable,
Department for Business Innovation and Skills,Intellectual Property Office,29/07/2015,Travel & Subsistence,International Policy Directorate,HRG UK,634642081,505.51,Not Applicable,
Department for Business Innovation and Skills,Intellectual Property Office,06/07/2015,Travel & Subsistence,International Policy Directorate,Veezu Ltd T/A Dragon Taxis (Newport),4021,63.00,Not Applicable,
Department for Business Innovation and Skills,Intellectual Property Office,08/07/2015,Marketing & Publicity,International Policy Directorate,Whitehall & Industry Group,2150119,780.00,Not Applicable,
Department for Business Innovation and Skills,Intellectual Property Office,03/07/2015,Pay Costs,International Policy Directorate,HM Courts and Tribunals Service,III309HMCTS/1666,2551.62,Not Applicable,
Department for Business Innovation and Skills,Intellectual Property Office,24/07/2015,Information Technology,International Policy Directorate,T-SYSTEMS LIMITED,9430382648,1318.99,Not Applicable,
Department for Business Innovation and Skills,Intellectual Property Office,24/07/2015,Information Technology,International Policy Directorate,T-SYSTEMS LIMITED,9430386840,1318.99,Not Applicable,
Department for Business Innovation and Skills,Intellectual Property Office,01/07/2015,Miscellaneous Expenses General,International Policy Directorate,Robin Jacob,52959,1824.00,Not Applicable,
Department for Business Innovation and Skills,Intellectual Property Office,16/07/2015,Miscellaneous Expenses General,International Policy Directorate,Kevin Mooney,52985,15000.00,Not Applicable,
Department for Business Innovation and Skills,Intellectual Property Office,08/07/2015,Miscellaneous Expenses General,People Places & Services Directorate,EC Harris LLP,75125515,17504.88,Not Applicable,
Department for Business Innovation and Skills,Intellectual Property Office,29/07/2015,Miscellaneous Expenses General,People Places & Services Directorate,EC Harris LLP,75133914,13037.40,Not Applicable,
Department for Business Innovation and Skills,Intellectual Property Office,29/07/2015,Miscellaneous Expenses General,People Places & Services Directorate,EC Harris LLP,75133916,7312.80,Not Applicable,
Department for Business Innovation and Skills,Intellectual Property Office,23/07/2015,Miscellaneous Expenses General,People Places & Services Directorate,Austin-Smith:Lord LLP,C15-038.04,2400.00,Not Applicable,
Department for Business Innovation and Skills,Intellectual Property Office,20/07/2015,Accommodation,People Places & Services Directorate,Wagstaff Interiors Group,I99440,102584.88,Not Applicable,
Department for Business Innovation and Skills,Intellectual Property Office,23/07/2015,Books,IT Directorate,Turpin44(0)01767604800,H57720150725oerutovkc,30.99,Not Applicable,
Department for Business Innovation and Skills,Intellectual Property Office,17/07/2015,Software Maintenance,IT Directorate,Dri Www Element5 Info,H57720150721cnoiuewld,42.02,Not Applicable,
Department for Business Innovation and Skills,Intellectual Property Office,09/07/2015,Fixed Telecoms Equipment,IT Directorate,Amazon UK Marketplace,H57720150711jydxmppqn,5.99,Not Applicable,
Department for Business Innovation and Skills,Intellectual Property Office,09/07/2015,Fixed Telecoms Equipment,IT Directorate,Amazon UK Marketplace,H57720150711olyfppfvy,31.23,Not Applicable,
Department for Business Innovation and Skills,Intellectual Property Office,09/07/2015,Fixed Telecoms Equipment,IT Directorate,Amazon UK Marketplace,H57720150711wnttfsrdi,66.25,Not Applicable,
Department for Business Innovation and Skills,Intellectual Property Office,28/07/2015,Fixed Telecoms Equipment,IT Directorate,Rentals From 02,H57720150730mqnhoioik,157.03,Not Applicable,
Department for Business Innovation and Skills,Intellectual Property Office,16/07/2015,Fixed Telecoms Equipment,IT Directorate,Meetingzone Ltd,H57720150718rvlfltghd,269.32,Not Applicable,
Department for Business Innovation and Skills,Intellectual Property Office,08/07/2015,Perpetual Licences (no further payments),IT Directorate,Gum.Co/cc Hemingway Ap,H57720150710wtskobqlk,4.69,Not Applicable,
Department for Business Innovation and Skills,Intellectual Property Office,08/07/2015,Perpetual Licences (no further payments),IT Directorate,Gum.Co/cc Hemingway Ap,H57720150710hatrljbkt,4.69,Not Applicable,
Department for Business Innovation and Skills,Intellectual Property Office,07/07/2015,Perpetual Licences (no further payments),IT Directorate,Dri Www Element5 Info,H57720150710myhdnwrxi,238.80,Not Applicable,
Department for Business Innovation and Skills,Intellectual Property Office,01/07/2015,Perpetual Licences (no further payments),IT Directorate,Fsprg.Com Ncrunch.Com,H57720150704sisgryypv,686.52,Not Applicable,
Department for Business Innovation and Skills,Intellectual Property Office,20/07/2015,Software Maintenance,IT Directorate,"Amazon Svcs Europe,sar",H57720150722xccultmqb,87.27,Not Applicable,
Department for Business Innovation and Skills,Intellectual Property Office,20/07/2015,Software Maintenance,IT Directorate,Amazon UK Marketplace,H57720150722pscxtxunn,232.82,Not Applicable,
Department for Business Innovation and Skills,Intellectual Property Office,01/07/2015,Software Maintenance,IT Directorate,Amazon UK Retail,H57720150703wxjchpxqa,19.76,Not Applicable,
Department for Business Innovation and Skills,Intellectual Property Office,01/07/2015,Software Maintenance,IT Directorate,Amazon UK Retail,H57720150703cfztkexwb,19.75,Not Applicable,
Department for Business Innovation and Skills,Intellectual Property Office,01/07/2015,Software Maintenance,IT Directorate,Amazon UK Retail,H57720150703lujxbvbtu,19.76,Not Applicable,
Department for Business Innovation and Skills,Intellectual Property Office,01/07/2015,Software Maintenance,IT Directorate,Amazon UK Retail,H57720150703mgmjfghxw,19.76,Not Applicable,
Department for Business Innovation and Skills,Intellectual Property Office,01/07/2015,Software Maintenance,IT Directorate,Amazon UK Retail,H57720150703ofywiwect,19.76,Not Applicable,
Department for Business Innovation and Skills,Intellectual Property Office,30/06/2015,Software Maintenance,IT Directorate,"Amazon Svcs Europe,sar",H57720150702rtfonubyi,21.45,Not Applicable,
Department for Business Innovation and Skills,Intellectual Property Office,27/07/2015,Network and infrastructure H/W,IT Directorate,Apple Online Store Gbp,H57720150729imwcgkgyf,130.00,Not Applicable,
Department for Business Innovation and Skills,Intellectual Property Office,24/07/2015,Network and infrastructure H/W,IT Directorate,Amazon UK Retail,H57720150728qkzxnuwut,57.84,Not Applicable,
Department for Business Innovation and Skills,Intellectual Property Office,20/07/2015,Network and infrastructure H/W,IT Directorate,"Amazon Svcs Europe,sar",H57720150722boddqdujv,37.98,Not Applicable,
Department for Business Innovation and Skills,Intellectual Property Office,16/07/2015,Network and infrastructure H/W,IT Directorate,Apple Online Store Gbp,H57720150718otjqbkwci,150.00,Not Applicable,
Department for Business Innovation and Skills,Intellectual Property Office,13/07/2015,Network and infrastructure H/W,IT Directorate,Mymemoryltd,H57720150715hxjucocud,50.73,Not Applicable,
Department for Business Innovation and Skills,Intellectual Property Office,13/07/2015,Network and infrastructure H/W,IT Directorate,Wondershare,H57720150715pkfasyskg,58.16,Not Applicable,
Department for Business Innovation and Skills,Intellectual Property Office,13/07/2015,Network and infrastructure H/W,IT Directorate,Amazon UK Retail,H57720150715ugzbedqmx,220.48,Not Applicable,
Department for Business Innovation and Skills,Intellectual Property Office,09/07/2015,Network and infrastructure H/W,IT Directorate,Bt Shop,H57720150711ajwttpcep,589.72,Not Applicable,
Department for Business Innovation and Skills,Intellectual Property Office,07/07/2015,Network and infrastructure H/W,IT Directorate,Amazon UK Marketplace,H57720150709bdsfniscg,118.68,Not Applicable,
Department for Business Innovation and Skills,Intellectual Property Office,27/07/2015,Fixed Telecoms Equipment,IT Directorate,Apple Online Store Gbp,H57720150729tdffjstun,79.00,Not Applicable,
Department for Business Innovation and Skills,Intellectual Property Office,24/07/2015,Fixed Telecoms Equipment,IT Directorate,Digicert Inc,H57720150728loycgqznf,332.69,Not Applicable,
Department for Business Innovation and Skills,Intellectual Property Office,24/07/2015,Fixed Telecoms Equipment,IT Directorate,Digicert Inc,H57720150728erbkewbfe,296.09,Not Applicable,
Department for Business Innovation and Skills,Intellectual Property Office,17/07/2015,Fixed Telecoms Equipment,IT Directorate,Amazon UK Retail,H57720150721chylhjoop,144.52,Not Applicable,
Department for Business Innovation and Skills,Intellectual Property Office,11/07/2015,Fixed Telecoms Equipment,IT Directorate,"Amazon Svcs Europe,sar",H57720150714dudpffito,14.54,Not Applicable,
Department for Business Innovation and Skills,Intellectual Property Office,02/07/2015,Perpetual Licences (no further payments),IT Directorate,Websitepulse.Com,H57720150707knizguswa,45.57,Not Applicable,
Department for Business Innovation and Skills,Intellectual Property Office,30/07/2015,Books,IT Directorate,Amazon UK Marketplace,H57720150801gxmfmfwgc,32.62,Not Applicable,
Department for Business Innovation and Skills,Intellectual Property Office,05/07/2015,Career Development Services,IT Directorate,Amazon UK Marketplace,H57720150707rrcuplspf,24.23,Not Applicable,
Department for Business Innovation and Skills,Intellectual Property Office,05/07/2015,Career Development Services,IT Directorate,General Assembly,H57720150707ynhorozfb,32.36,Not Applicable,
Department for Business Innovation and Skills,Intellectual Property Office,14/07/2015,Books,IT Directorate,Amazon UK Retail,H57720150716ccsjctcen,50.24,Not Applicable,
Department for Business Innovation and Skills,Intellectual Property Office,01/07/2015,Network and infrastructure H/W,IT Directorate,Currys Online,H57720150703nqxveeacu,71.99,Not Applicable,
Department for Business Innovation and Skills,Intellectual Property Office,24/07/2015,Perpetual Licences (no further payments),IT Directorate,Cloudflare,H57720150728wsdpvclmw,16.64,Not Applicable,
Department for Business Innovation and Skills,Intellectual Property Office,25/07/2015,Legal Consultancy,People Places & Services Directorate,Staples,H57720150728ndwmxgbce,28.74,Not Applicable,
Department for Business Innovation and Skills,Intellectual Property Office,22/07/2015,Entertainment,People Places & Services Directorate,Tesco Stores 2931,H57720150724jmmvtvrql,1.95,Not Applicable,
Department for Business Innovation and Skills,Intellectual Property Office,20/07/2015,Entertainment,People Places & Services Directorate,Sainsburys Superma,H57720150722iqswclqbh,25.43,Not Applicable,
Department for Business Innovation and Skills,Intellectual Property Office,07/07/2015,T&S UK,Innovation Directorate,No Show Charge,H57720150709tpltmptyj,105.68,Not Applicable,
Department for Business Innovation and Skills,Intellectual Property Office,06/07/2015,T&S O-seas excl EPOQUE,Innovation Directorate,Hrg UK Inm165795794,H57720150710etpaksfnq,5.62,Not Applicable,
Department for Business Innovation and Skills,Intellectual Property Office,06/07/2015,T&S O-seas excl EPOQUE,Innovation Directorate,Easyjet,H57720150708tckyyojfo,83.55,Not Applicable,
Department for Business Innovation and Skills,Intellectual Property Office,22/07/2015,Advertising Distribution,Innovation Directorate,Paypal,H57720150724ecrfczpyp,12.56,Not Applicable,
Department for Business Innovation and Skills,Intellectual Property Office,13/07/2015,T&S UK,Innovation Directorate,Travelodge Agent,H57720150715bjwnmfjbv,226.50,Not Applicable,
Department for Business Innovation and Skills,Intellectual Property Office,06/07/2015,T&S O-seas excl EPOQUE,Innovation Directorate,Hrg UK Inm165796075,H57720150710gcedgqxub,6.04,Not Applicable,
Department for Business Innovation and Skills,Intellectual Property Office,06/07/2015,T&S O-seas excl EPOQUE,Innovation Directorate,Easyjet,H57720150708otsqbtnwf,153.56,Not Applicable,
Department for Business Innovation and Skills,Intellectual Property Office,03/07/2015,T&S UK,Innovation Directorate,Mercure Shakespeare Hotel,H57720150707bzrnwvqgb,85.00,Not Applicable,
Department for Business Innovation and Skills,Intellectual Property Office,16/07/2015,T&S UK,Innovation Directorate,Marksandspencer.Co,H57720150718tccpglkeo,62.80,Not Applicable,
Department for Business Innovation and Skills,Intellectual Property Office,15/07/2015,T&S UK,Innovation Directorate,Marksandspencer.Co,H57720150717txqbtxvjb,61.80,Not Applicable,
Department for Business Innovation and Skills,Intellectual Property Office,30/06/2015,Advertising Distribution,Innovation Directorate,Northamptonchamber,H57720150702tuanqpqww,198.00,Not Applicable,
Department for Business Innovation and Skills,Intellectual Property Office,13/07/2015,T&S UK,Copyright and Enforcement Directorate,Www.Purpleparking.Com,H57720150715jsbdsjonr,46.79,Not Applicable,
Department for Business Innovation and Skills,Intellectual Property Office,29/06/2015,T&S O-seas excl EPOQUE,Copyright and Enforcement Directorate,Hrg UK Inm165791254,H57720150703itddvqyah,5.61,Not Applicable,
Department for Business Innovation and Skills,Intellectual Property Office,06/07/2015,Entertainment,Copyright and Enforcement Directorate,Amazon UK Marketplace,H57720150708lesebqfbw,10.95,Not Applicable,
Department for Business Innovation and Skills,Intellectual Property Office,08/07/2015,T&S UK,Copyright and Enforcement Directorate,Hrg UK Inm165797712,H57720150714olajonyop,6.18,Not Applicable,
Department for Business Innovation and Skills,Intellectual Property Office,08/07/2015,T&S UK,Copyright and Enforcement Directorate,Hrg UK Inm165797725,H57720150714iejgzjwsr,6.18,Not Applicable,
Department for Business Innovation and Skills,Intellectual Property Office,08/07/2015,T&S UK,Copyright and Enforcement Directorate,Easyjet,H57720150710akffspwfd,177.05,Not Applicable,
Department for Business Innovation and Skills,Intellectual Property Office,08/07/2015,T&S UK,Copyright and Enforcement Directorate,Easyjet,H57720150710rhethrvjn,177.05,Not Applicable,
Department for Business Innovation and Skills,Intellectual Property Office,03/07/2015,Entertainment,Copyright and Enforcement Directorate,Tesco Stores 2931,H57720150707efuybcfok,13.17,Not Applicable,
Department for Business Innovation and Skills,Intellectual Property Office,03/07/2015,Career Development Services,Copyright and Enforcement Directorate,Www.Computeraidrai,H57720150707hbubeytuo,226.00,Not Applicable,
Department for Business Innovation and Skills,Intellectual Property Office,28/07/2015,Career Development Services,Finance Directorate,Livegroup.Co.Uk,H57720150730dwjmjgekw,510.00,Not Applicable,
Department for Business Innovation and Skills,Intellectual Property Office,22/07/2015,T&S UK,Finance Directorate,"Securitymetrics, Inc.",H57720150724hakfedbnw,29.99,Not Applicable,
Department for Business Innovation and Skills,Intellectual Property Office,22/07/2015,Innovation Fund,Finance Directorate,Amazon UK Marketplace,H57720150724hhybqeopa,191.90,Not Applicable,
Department for Business Innovation and Skills,Intellectual Property Office,22/07/2015,Innovation Fund,Finance Directorate,Amazon UK Retail,H57720150724rifujlwxf,41.78,Not Applicable,
Department for Business Innovation and Skills,Intellectual Property Office,21/07/2015,Innovation Fund,Finance Directorate,Amazon UK Marketplace,H57720150723onxhovmdk,159.80,Not Applicable,
Department for Business Innovation and Skills,Intellectual Property Office,21/07/2015,Innovation Fund,Finance Directorate,Ligo Electronics,H57720150723htjajdxvx,204.99,Not Applicable,
Department for Business Innovation and Skills,Intellectual Property Office,06/07/2015,Office Stationery,Finance Directorate,Euroffice.Co.Uk,H57720150708lxxxrgjnn,47.26,Not Applicable,
Department for Business Innovation and Skills,Intellectual Property Office,30/07/2015,Office Stationery,Finance Directorate,Xma Ltd,H57720150801elqmhsvrr,38.14,Not Applicable,
Department for Business Innovation and Skills,Intellectual Property Office,23/07/2015,Office Stationery,Finance Directorate,Xma Ltd,H57720150725plbchdbox,203.59,Not Applicable,
Department for Business Innovation and Skills,Intellectual Property Office,22/07/2015,Office Stationery,Finance Directorate,Xma Ltd,H57720150724hpkhxxmlj,35.39,Not Applicable,
Department for Business Innovation and Skills,Intellectual Property Office,21/07/2015,Office Stationery,Finance Directorate,Xma Ltd,H57720150723buvojzvhi,138.53,Not Applicable,
Department for Business Innovation and Skills,Intellectual Property Office,17/07/2015,Office Stationery,Finance Directorate,Xma Ltd,H57720150721iormgbqlt,38.14,Not Applicable,
Department for Business Innovation and Skills,Intellectual Property Office,15/07/2015,Office Stationery,Finance Directorate,Xma Ltd,H57720150717gcjiyvfiy,140.07,Not Applicable,
Department for Business Innovation and Skills,Intellectual Property Office,15/07/2015,Office Stationery,Finance Directorate,Xma Ltd,H57720150717ohxlxvscp,101.80,Not Applicable,
Department for Business Innovation and Skills,Intellectual Property Office,15/07/2015,Office Stationery,Finance Directorate,Xma Ltd,H57720150717pyqjjmxro,112.46,Not Applicable,
Department for Business Innovation and Skills,Intellectual Property Office,02/07/2015,Office Stationery,Finance Directorate,Xma Ltd,H57720150704dvmzihmta,221.66,Not Applicable,
Department for Business Innovation and Skills,Intellectual Property Office,02/07/2015,Office Stationery,Finance Directorate,Xma Ltd,H57720150704viuibhgjt,255.24,Not Applicable,
Department for Business Innovation and Skills,Intellectual Property Office,30/06/2015,Office Stationery,Finance Directorate,Asda 4387,H57720150702bdsggseof,12.00,Not Applicable,
Department for Business Innovation and Skills,Intellectual Property Office,30/06/2015,Office Stationery,Finance Directorate,Www.Ukpos.Com,H57720150702otgvedwhx,69.91,Not Applicable,
Department for Business Innovation and Skills,Intellectual Property Office,04/07/2015,Office Stationery,Finance Directorate,Amazon UK Retail,H57720150707qvlcorhjg,16.51,Not Applicable,
Department for Business Innovation and Skills,Intellectual Property Office,01/07/2015,Office Stationery,Finance Directorate,Euroffice.Co.Uk,H57720150703wdvevovfr,369.42,Not Applicable,
Department for Business Innovation and Skills,Intellectual Property Office,10/07/2015,Office Stationery,Finance Directorate,Amazon UK Retail,H57720150714ikdwtychg,19.39,Not Applicable,
Department for Business Innovation and Skills,Intellectual Property Office,09/07/2015,Office Stationery,Finance Directorate,Amazon UK Marketplace,H57720150711mxpmywuin,4.99,Not Applicable,
Department for Business Innovation and Skills,Intellectual Property Office,30/07/2015,Books,People Places & Services Directorate,Amazon UK Retail,H57720150801bdrujprzi,23.98,Not Applicable,
Department for Business Innovation and Skills,Intellectual Property Office,23/07/2015,Books,People Places & Services Directorate,Amazon UK Marketplace,H57720150725jqvevtoeo,-6.87,Not Applicable,
Department for Business Innovation and Skills,Intellectual Property Office,23/07/2015,Books,People Places & Services Directorate,Amazon UK Marketplace,H57720150725bpmucbnmt,-2.30,Not Applicable,
Department for Business Innovation and Skills,Intellectual Property Office,20/07/2015,Books,People Places & Services Directorate,Amazon UK Marketplace,H57720150722hlloqfhzo,2.81,Not Applicable,
Department for Business Innovation and Skills,Intellectual Property Office,19/07/2015,Books,People Places & Services Directorate,Amazon UK Marketplace,H57720150721dxuqnqwmo,2.81,Not Applicable,
Department for Business Innovation and Skills,Intellectual Property Office,18/07/2015,Books,People Places & Services Directorate,"Amazon Svcs Europe,sar",H57720150721mpvtleubs,1.69,Not Applicable,
Department for Business Innovation and Skills,Intellectual Property Office,18/07/2015,Books,People Places & Services Directorate,Amazon UK Marketplace,H57720150721kmmkbkohi,27.74,Not Applicable,
Department for Business Innovation and Skills,Intellectual Property Office,17/07/2015,Books,People Places & Services Directorate,"Amazon Svcs Europe,sar",H57720150721bgxtajfht,2.81,Not Applicable,
Department for Business Innovation and Skills,Intellectual Property Office,18/07/2015,Books,People Places & Services Directorate,Amazon UK Marketplace,H57720150721vrhcmbkuj,11.37,Not Applicable,
Department for Business Innovation and Skills,Intellectual Property Office,30/07/2015,Legal Consultancy,People Places & Services Directorate,Sparkol,H57720150801vchcagzma,96.00,Not Applicable,
Department for Business Innovation and Skills,Intellectual Property Office,03/07/2015,Career Development Services,People Places & Services Directorate,Www.Computeraidrai,H57720150707hbubeytuo,226.00,Not Applicable,
Department for Business Innovation and Skills,Intellectual Property Office,01/07/2015,Career Development Services,People Places & Services Directorate,Opp Ltd Sterling Vt,H57720150703xhmmwtjda,242.18,Not Applicable,
Department for Business Innovation and Skills,Intellectual Property Office,30/07/2015,Entertainment,People Places & Services Directorate,Asda Superstore 4928,H57720150801ipjgxrcep,10.45,Not Applicable,
Department for Business Innovation and Skills,Intellectual Property Office,30/07/2015,Books,People Places & Services Directorate,Paypal,H57720150801xlpsljzqb,4.75,Not Applicable,
Department for Business Innovation and Skills,Intellectual Property Office,29/07/2015,Books,People Places & Services Directorate,"Amazon Svcs Europe,sar",H57720150731edaidqhfs,21.95,Not Applicable,
Department for Business Innovation and Skills,Intellectual Property Office,29/07/2015,Entertainment,People Places & Services Directorate,Paypal,H57720150731nflkyaekk,11.90,Not Applicable,
Department for Business Innovation and Skills,Intellectual Property Office,21/07/2015,Entertainment,People Places & Services Directorate,Halfords On Line,H57720150728dgklctvkn,15.57,Not Applicable,
Department for Business Innovation and Skills,Intellectual Property Office,09/07/2015,Entertainment,People Places & Services Directorate,The Plastic Box Compan,H57720150711xkswuskwp,41.05,Not Applicable,
Department for Business Innovation and Skills,Intellectual Property Office,07/07/2015,Entertainment,People Places & Services Directorate,Asda Superstore 4928,H57720150709mkhbwdhlt,7.00,Not Applicable,
Department for Business Innovation and Skills,Intellectual Property Office,30/07/2015,Office Stationery,People Places & Services Directorate,Sig,H57720150801evcskeqig,139.84,Not Applicable,
Department for Business Innovation and Skills,Intellectual Property Office,30/07/2015,Office Stationery,People Places & Services Directorate,Sig,H57720150801gijlotzfp,-139.84,Not Applicable,
Department for Business Innovation and Skills,Intellectual Property Office,24/07/2015,Office Stationery,People Places & Services Directorate,Wp-Stamps Direct L,H57720150728xzvjcxvia,29.33,Not Applicable,
Department for Business Innovation and Skills,Intellectual Property Office,03/07/2015,Career Development Services,People Places & Services Directorate,Www.Computeraidrai,H57720150707hbubeytuo,226.00,Not Applicable,
Department for Business Innovation and Skills,Intellectual Property Office,07/07/2015,Entertainment,People Places & Services Directorate,Subway,H57720150709rwbohugqn,23.30,Not Applicable,
Department for Business Innovation and Skills,Intellectual Property Office,03/07/2015,Books,People Places & Services Directorate,Amazon UK Retail,H57720150707nonpblkug,18.94,Not Applicable,
Department for Business Innovation and Skills,Intellectual Property Office,22/07/2015,Career Development Services,People Places & Services Directorate,Www.Westminster-Briefi,H57720150724gywsfaajc,354.00,Not Applicable,
Department for Business Innovation and Skills,Intellectual Property Office,01/07/2015,Legal Consultancy,People Places & Services Directorate,Scrum Services,H57720150703fqlykqdds,98.78,Not Applicable,
Department for Business Innovation and Skills,Intellectual Property Office,23/07/2015,Career Development Services,People Places & Services Directorate,Academy Class Limi,H57720150725qqytmktel,3502.80,Not Applicable,
Department for Business Innovation and Skills,Intellectual Property Office,15/07/2015,Purchase of Reprographic kit,People Places & Services Directorate,Amazon UK Retail,H57720150717fbgsegtib,69.00,Not Applicable,
Department for Business Innovation and Skills,Intellectual Property Office,22/07/2015,Office Stationery,People Places & Services Directorate,Business Ind Solutions,H57720150724kocrbmkdg,250.74,Not Applicable,
Department for Business Innovation and Skills,Intellectual Property Office,09/07/2015,Minor Works-Goods,People Places & Services Directorate,Newey & Eyre,H57720150711rpxnutkva,391.70,Not Applicable,
Department for Business Innovation and Skills,Intellectual Property Office,07/07/2015,Minor Works-Goods,People Places & Services Directorate,Newey & Eyre,H57720150709dypfvfstr,576.23,Not Applicable,
Department for Business Innovation and Skills,Intellectual Property Office,01/07/2015,Office Stationery,People Places & Services Directorate,Swrd Group Ltd,H57720150703xquafxywc,450.00,Not Applicable,
Department for Business Innovation and Skills,Intellectual Property Office,22/07/2015,Office Stationery,People Places & Services Directorate,Monkeyoffice.Co.Uk,H57720150724rntfxgcdh,212.64,Not Applicable,
Department for Business Innovation and Skills,Intellectual Property Office,22/07/2015,Office Stationery,People Places & Services Directorate,Www.Wipeeasytablecloth,H57720150724tugwmdklj,17.57,Not Applicable,
Department for Business Innovation and Skills,Intellectual Property Office,15/07/2015,Office Stationery,People Places & Services Directorate,Amazon UK Marketplace,H57720150717kvmntgchp,12.99,Not Applicable,
Department for Business Innovation and Skills,Intellectual Property Office,14/07/2015,Office Stationery,People Places & Services Directorate,Fairfield Displays,H57720150716rhykbedmc,54.25,Not Applicable,
Department for Business Innovation and Skills,Intellectual Property Office,08/07/2015,Office Stationery,People Places & Services Directorate,Boardsdirect.Co.Uk,H57720150710elfaevzyi,102.00,Not Applicable,
Department for Business Innovation and Skills,Intellectual Property Office,01/07/2015,Office Stationery,People Places & Services Directorate,Key Industrial Equipment,H57720150704hidhiwlrp,654.00,Not Applicable,
Department for Business Innovation and Skills,Intellectual Property Office,30/07/2015,Office Stationery,People Places & Services Directorate,Amazon UK Retail,H57720150801wpifkujxn,39.97,Not Applicable,
Department for Business Innovation and Skills,Intellectual Property Office,30/07/2015,Office Stationery,People Places & Services Directorate,Www.Eurekadirect.Co.Uk,H57720150801oqlugfcgk,215.70,Not Applicable,
Department for Business Innovation and Skills,Intellectual Property Office,30/07/2015,Office Stationery,People Places & Services Directorate,Amazon UK Retail,H57720150801pyccsivwi,36.95,Not Applicable,
Department for Business Innovation and Skills,Intellectual Property Office,30/07/2015,Office Stationery,People Places & Services Directorate,Amazon UK Marketplace,H57720150801gdqvnfijl,21.31,Not Applicable,
Department for Business Innovation and Skills,Intellectual Property Office,28/07/2015,Office Stationery,People Places & Services Directorate,Newey & Eyre,H57720150730uzobsxcgo,326.40,Not Applicable,
Department for Business Innovation and Skills,Intellectual Property Office,25/07/2015,Office Stationery,People Places & Services Directorate,Amazon UK Retail,H57720150728whmunkgyl,17.46,Not Applicable,
Department for Business Innovation and Skills,Intellectual Property Office,24/07/2015,Office Stationery,People Places & Services Directorate,Alpha Electronics(Wales),H57720150728kbxyelefq,42.00,Not Applicable,
Department for Business Innovation and Skills,Intellectual Property Office,21/07/2015,Office Stationery,People Places & Services Directorate,Tv Licensing,H57720150724jiypqfeyk,145.50,Not Applicable,
Department for Business Innovation and Skills,Intellectual Property Office,21/07/2015,Office Stationery,People Places & Services Directorate,Amazon UK Retail,H57720150723ctwyzlhao,24.95,Not Applicable,
Department for Business Innovation and Skills,Intellectual Property Office,21/07/2015,Office Stationery,People Places & Services Directorate,Amazon UK Marketplace,H57720150723kmdnbokrq,29.99,Not Applicable,
Department for Business Innovation and Skills,Intellectual Property Office,21/07/2015,Office Stationery,People Places & Services Directorate,Amazon UK Retail,H57720150723vxhzqcxky,24.95,Not Applicable,
Department for Business Innovation and Skills,Intellectual Property Office,20/07/2015,Office Stationery,People Places & Services Directorate,"Amazon Svcs Europe,sar",H57720150722nfwyqyfkl,140.00,Not Applicable,
Department for Business Innovation and Skills,Intellectual Property Office,20/07/2015,Office Stationery,People Places & Services Directorate,Amazon UK Marketplace,H57720150722dqcsxdosk,26.94,Not Applicable,
Department for Business Innovation and Skills,Intellectual Property Office,18/07/2015,Office Stationery,People Places & Services Directorate,Amazon UK Retail,H57720150721iahgmpoew,69.84,Not Applicable,
Department for Business Innovation and Skills,Intellectual Property Office,17/07/2015,Office Stationery,People Places & Services Directorate,"Amazon Svcs Europe,sar",H57720150721jcmixtwpq,29.50,Not Applicable,
Department for Business Innovation and Skills,Intellectual Property Office,17/07/2015,Office Stationery,People Places & Services Directorate,Amazon UK Retail,H57720150721mfiqqnvnq,61.10,Not Applicable,
Department for Business Innovation and Skills,Intellectual Property Office,16/07/2015,Office Stationery,People Places & Services Directorate,Healthy Workstations Ltd,H57720150718pvawewrxi,191.62,Not Applicable,
Department for Business Innovation and Skills,Intellectual Property Office,16/07/2015,Office Stationery,People Places & Services Directorate,Amazon UK Marketplace,H57720150718dtibinppi,13.89,Not Applicable,
Department for Business Innovation and Skills,Intellectual Property Office,16/07/2015,Office Stationery,People Places & Services Directorate,Amazon UK Marketplace,H57720150718nukwqnsku,39.44,Not Applicable,
Department for Business Innovation and Skills,Intellectual Property Office,15/07/2015,Office Stationery,People Places & Services Directorate,Amazon UK Marketplace,H57720150717sbrcpveow,-13.89,Not Applicable,
Department for Business Innovation and Skills,Intellectual Property Office,13/07/2015,Office Stationery,People Places & Services Directorate,Boardsdirect.Co.Uk,H57720150715vftpsissd,426.00,Not Applicable,
Department for Business Innovation and Skills,Intellectual Property Office,13/07/2015,Office Stationery,People Places & Services Directorate,Healthy Workstations Ltd,H57720150715zjwjelhku,77.99,Not Applicable,
Department for Business Innovation and Skills,Intellectual Property Office,10/07/2015,Office Stationery,People Places & Services Directorate,Www.Cotswoldoutdoor.Com,H57720150714berhgdlml,17.95,Not Applicable,
Department for Business Innovation and Skills,Intellectual Property Office,10/07/2015,Office Stationery,People Places & Services Directorate,Amazon UK Retail,H57720150714fizyebwwi,26.95,Not Applicable,
Department for Business Innovation and Skills,Intellectual Property Office,09/07/2015,Office Stationery,People Places & Services Directorate,Amazon UK Retail,H57720150711rhkodnavs,87.30,Not Applicable,
Department for Business Innovation and Skills,Intellectual Property Office,09/07/2015,Office Stationery,People Places & Services Directorate,Amazon UK Marketplace,H57720150711vfhrlhlud,19.50,Not Applicable,
Department for Business Innovation and Skills,Intellectual Property Office,09/07/2015,Office Stationery,People Places & Services Directorate,Amazon UK Marketplace,H57720150711wsmrwmczr,25.00,Not Applicable,
Department for Business Innovation and Skills,Intellectual Property Office,09/07/2015,Office Stationery,People Places & Services Directorate,Amazon UK Marketplace,H57720150711eqyjylvko,13.89,Not Applicable,
Department for Business Innovation and Skills,Intellectual Property Office,08/07/2015,Office Stationery,People Places & Services Directorate,Screwfix Direct,H57720150710uhbvjjwqd,71.94,Not Applicable,
Department for Business Innovation and Skills,Intellectual Property Office,07/07/2015,Office Stationery,People Places & Services Directorate,Sig,H57720150709mnhvyoqdb,143.64,Not Applicable,
Department for Business Innovation and Skills,Intellectual Property Office,02/07/2015,Office Stationery,People Places & Services Directorate,South Wales Suppliers Lt,H57720150704ngflrjych,69.60,Not Applicable,
Department for Business Innovation and Skills,Intellectual Property Office,02/07/2015,Office Stationery,People Places & Services Directorate,Newey & Eyre,H57720150704tekhordeg,141.69,Not Applicable,
Department for Business Innovation and Skills,Intellectual Property Office,19/07/2015,Office Stationery,People Places & Services Directorate,Amazon UK Marketplace,H57720150721yeqfhdmtt,7.46,Not Applicable,
Department for Business Innovation and Skills,Intellectual Property Office,19/07/2015,Office Stationery,People Places & Services Directorate,Amazon UK Marketplace,H57720150721hjqdhntjj,7.46,Not Applicable,
Department for Business Innovation and Skills,Intellectual Property Office,07/07/2015,Office Stationery,People Places & Services Directorate,Tesco Store 2931,H57720150709gkgiwwscn,34.68,Not Applicable,
Department for Business Innovation and Skills,Intellectual Property Office,22/07/2015,Minor Works-Goods,People Places & Services Directorate,Don Ruffles Ltd,H57720150724dhisuilih,1884.00,Not Applicable,
Department for Business Innovation and Skills,Intellectual Property Office,10/07/2015,Minor Works-Goods,People Places & Services Directorate,Hss Hire,H57720150714icqugsefu,-556.67,Not Applicable,
Department for Business Innovation and Skills,Intellectual Property Office,22/07/2015,Minor Works-Goods,People Places & Services Directorate,Sig,H57720150724ngrdxjsup,65.18,Not Applicable,
Department for Business Innovation and Skills,Intellectual Property Office,16/07/2015,Minor Works-Goods,People Places & Services Directorate,Sig,H57720150718uftugqysr,807.18,Not Applicable,
Department for Business Innovation and Skills,Intellectual Property Office,16/07/2015,Minor Works-Goods,People Places & Services Directorate,Sig,H57720150718vdjecimhj,180.18,Not Applicable,
Department for Business Innovation and Skills,Intellectual Property Office,15/07/2015,Minor Works-Goods,People Places & Services Directorate,Magscapes Limited,H57720150717quwysfxle,292.68,Not Applicable,
Department for Business Innovation and Skills,Intellectual Property Office,07/07/2015,Minor Works-Goods,People Places & Services Directorate,Simplified Uk,H57720150710zghulqpym,65.11,Not Applicable,
Department for Business Innovation and Skills,Intellectual Property Office,02/07/2015,Minor Works-Goods,People Places & Services Directorate,Pipe/climate Center K3,H57720150704orfkyqsxs,583.52,Not Applicable,
Department for Business Innovation and Skills,Intellectual Property Office,06/07/2015,Minor Works-Goods,People Places & Services Directorate,Hss Hire,H57720150708hmzhvzwwn,500.00,Not Applicable,
Department for Business Innovation and Skills,Intellectual Property Office,15/07/2015,Minor Works-Goods,People Places & Services Directorate,Tp Abercarn,H57720150717lydrbiwtj,107.06,Not Applicable,
Department for Business Innovation and Skills,Intellectual Property Office,01/07/2015,T&S UK,International Policy Directorate,Rentals From 02,H57720150703lpnrjeqpx,100.00,Not Applicable,
Department for Business Innovation and Skills,Intellectual Property Office,21/07/2015,Entertainment,International Policy Directorate,Marksandspencer.Co,H57720150723usfjeqibh,63.00,Not Applicable,
Department for Business Innovation and Skills,Intellectual Property Office,07/07/2015,T&S O-seas excl EPOQUE,International Policy Directorate,Hrg UK Inm165796901,H57720150711hkfoxrmky,6.42,Not Applicable,
Department for Business Innovation and Skills,Intellectual Property Office,07/07/2015,T&S O-seas excl EPOQUE,International Policy Directorate,Easyjet,H57720150709dbwhyoqbg,217.85,Not Applicable,
Department for Business Innovation and Skills,Intellectual Property Office,24/07/2015,Entertainment,International Policy Directorate,Buyabattery Co Uk,H57720150728ubscysgix,12.75,Not Applicable,
Department for Business Innovation and Skills,Intellectual Property Office,23/07/2015,Entertainment,International Policy Directorate,Www.Intecoffice.Co.Uk,H57720150725nyssbbsjq,117.80,Not Applicable,
Department for Business Innovation and Skills,Intellectual Property Office,01/07/2015,Legal Consultancy,Patents Directorate,Morgan Motor Co. Sales,H57720150703bboxmuvqs,16.00,Not Applicable,
Department for Business Innovation and Skills,Intellectual Property Office,28/07/2015,Network and infrastructure H/W,Patents Directorate,Amazon UK Marketplace,H57720150730kamjaurol,414.27,Not Applicable,
Department for Business Innovation and Skills,Intellectual Property Office,27/07/2015,Network and infrastructure H/W,Patents Directorate,Amazon UK Marketplace,H57720150729sgydlumpt,1499.97,Not Applicable,
Department for Business Innovation and Skills,Intellectual Property Office,24/07/2015,Network and infrastructure H/W,Patents Directorate,Currys Online,H57720150728kqbqmziac,319.96,Not Applicable,
Department for Business Innovation and Skills,Intellectual Property Office,25/07/2015,Network and infrastructure H/W,Patents Directorate,Amazon UK Marketplace,H57720150728iimpgoprv,29.00,Not Applicable,
Department for Business Innovation and Skills,Intellectual Property Office,03/07/2015,Overseas Patent Specifications,Patents Directorate,Aacr Journals,H57720150707zdvroengk,23.12,Not Applicable,
Department for Business Innovation and Skills,Intellectual Property Office,02/07/2015,T&S UK,IT Directorate,Lancaster Gate Hotel,H57720150707nncpxbvnj,120.00,Not Applicable,
Department for Business Innovation and Skills,Intellectual Property Office,07/07/2015,Legal Consultancy,IT Directorate,Bugherd Pty Ltd,H57720150709flxyqeqst,21.84,Not Applicable,
Department for Business Innovation and Skills,Intellectual Property Office,02/07/2015,Legal Consultancy,IT Directorate,Cloudflare,H57720150707hfwbxjque,9.69,Not Applicable,
Department for Business Innovation and Skills,Intellectual Property Office,03/07/2015,Legal Consultancy,IT Directorate,Cloudflare,H57720150707wpwihnnpy,11.57,Not Applicable,
Department for Business Innovation and Skills,Intellectual Property Office,16/07/2015,T&S O-seas excl EPOQUE,Trade Marks Directorate,Hrg UK Inm165803288,H57720150722bfokgywwh,14.79,Not Applicable,
Department for Business Innovation and Skills,Intellectual Property Office,16/07/2015,T&S O-seas excl EPOQUE,Trade Marks Directorate,Easyjet,H57720150718bdmacxhiv,365.75,Not Applicable,
Department for Business Innovation and Skills,Intellectual Property Office,23/07/2015,T&S O-seas excl EPOQUE,Trade Marks Directorate,Hrg UK Inm165807917,H57720150729wcppennuw,14.56,Not Applicable,
Department for Business Innovation and Skills,Intellectual Property Office,27/07/2015,T&S O-seas excl EPOQUE,Trade Marks Directorate,Easyjet,H57720150729oafrdproh,251.76,Not Applicable,
Department for Business Innovation and Skills,Intellectual Property Office,23/07/2015,T&S O-seas excl EPOQUE,Trade Marks Directorate,Easyjet,H57720150725ujufmevio,37.16,Not Applicable,
Department for Business Innovation and Skills,Intellectual Property Office,16/07/2015,T&S O-seas excl EPOQUE,Trade Marks Directorate,Hrg UK Inm165803525,H57720150722galckwghf,7.31,Not Applicable,
Department for Business Innovation and Skills,Intellectual Property Office,16/07/2015,T&S O-seas excl EPOQUE,Trade Marks Directorate,Hrg UK Inm165803289,H57720150722udetknddl,15.08,Not Applicable,
Department for Business Innovation and Skills,Intellectual Property Office,16/07/2015,T&S O-seas excl EPOQUE,Trade Marks Directorate,Ryanair,H57720150721mvsgougxw,76.49,Not Applicable,
Department for Business Innovation and Skills,Intellectual Property Office,16/07/2015,T&S O-seas excl EPOQUE,Trade Marks Directorate,Bristol Airport Limite,H57720150718vuynuxvgq,47.90,Not Applicable,
Department for Business Innovation and Skills,Intellectual Property Office,16/07/2015,T&S O-seas excl EPOQUE,Trade Marks Directorate,Easyjet,H57720150718xiibhqvmk,122.98,Not Applicable,
Department for Business Innovation and Skills,Intellectual Property Office,10/07/2015,T&S O-seas excl EPOQUE,Trade Marks Directorate,Hrg UK Inm165799764,H57720150716dymtjllqn,15.69,Not Applicable,
Department for Business Innovation and Skills,Intellectual Property Office,10/07/2015,T&S O-seas excl EPOQUE,Trade Marks Directorate,Hrg UK Inm165799782,H57720150716ryhcsqnot,14.79,Not Applicable,
Department for Business Innovation and Skills,Intellectual Property Office,10/07/2015,T&S O-seas excl EPOQUE,Trade Marks Directorate,Hrg UK Inm165799827,H57720150716tublmtewo,15.51,Not Applicable,
Department for Business Innovation and Skills,Intellectual Property Office,10/07/2015,T&S O-seas excl EPOQUE,Trade Marks Directorate,Hrg UK Inm165799765,H57720150716wjpbumlkl,15.88,Not Applicable,
Department for Business Innovation and Skills,Intellectual Property Office,10/07/2015,T&S O-seas excl EPOQUE,Trade Marks Directorate,Hrg UK Inm165799773,H57720150716lsiontvfo,15.15,Not Applicable,
Department for Business Innovation and Skills,Intellectual Property Office,10/07/2015,T&S O-seas excl EPOQUE,Trade Marks Directorate,Hrg UK Inm165799806,H57720150716qmfvqiwpc,14.84,Not Applicable,
Department for Business Innovation and Skills,Intellectual Property Office,10/07/2015,T&S O-seas excl EPOQUE,Trade Marks Directorate,Ryanair,H57720150715yzmgocixj,83.63,Not Applicable,
Department for Business Innovation and Skills,Intellectual Property Office,10/07/2015,T&S O-seas excl EPOQUE,Trade Marks Directorate,Ryanair,H57720150715jpxnupjkr,76.49,Not Applicable,
Department for Business Innovation and Skills,Intellectual Property Office,10/07/2015,T&S O-seas excl EPOQUE,Trade Marks Directorate,Easyjet,H57720150714ufheiymkh,196.36,Not Applicable,
Department for Business Innovation and Skills,Intellectual Property Office,10/07/2015,T&S O-seas excl EPOQUE,Trade Marks Directorate,Easyjet,H57720150714dfacymsfp,135.22,Not Applicable,
Department for Business Innovation and Skills,Intellectual Property Office,10/07/2015,T&S O-seas excl EPOQUE,Trade Marks Directorate,Easyjet,H57720150714jlymnmlmj,256.80,Not Applicable,
Department for Business Innovation and Skills,Intellectual Property Office,10/07/2015,T&S O-seas excl EPOQUE,Trade Marks Directorate,Easyjet,H57720150714jyvzmskyy,225.86,Not Applicable,
Department for Business Innovation and Skills,Intellectual Property Office,05/07/2015,Software Maintenance,Trade Marks Directorate,Intellectual Prop. Ofc,H57720150708hpwcjamyh,-100.00,Not Applicable,
Department for Business Innovation and Skills,Intellectual Property Office,05/07/2015,Software Maintenance,Trade Marks Directorate,Intellectual Prop. Ofc,H57720150707updlvjqrz,100.00,Not Applicable,
Department for Business Innovation and Skills,Intellectual Property Office,04/07/2015,Software Maintenance,Trade Marks Directorate,Intellectual Prop. Ofc,H57720150707vdxplegdk,100.00,Not Applicable,
Department for Business Innovation and Skills,Intellectual Property Office,01/07/2015,Network and infrastructure H/W,Trade Marks Directorate,Amazon UK Marketplace,H57720150703vjygfcouh,11.24,Not Applicable,
Department for Business Innovation and Skills,Intellectual Property Office,01/07/2015,Network and infrastructure H/W,Trade Marks Directorate,Amazon UK Marketplace,H57720150703mnlfwwnuc,499.99,Not Applicable,
